Workbook

Sheet Read Me
B2: Welcome to the Active Transportation Infrastructure Economic Benefits Calculator
B4: Description: | D4: This tool calculates the monetary direct, indirect, and induced benefits of investment in active transportation infrastructure given a set of user inputs on costs and facility use.
B6: Analysis Framework: | D6: The analysis uses economic and demographic characteristics for counties in Utah and a list of six (6) generalized project types.
B8: Source: | D8: Economic Impacts of Active Transportation - Utah Active Transportation Benefits Study (UATBS) - March 2017 - Prepared by Urban Design 4 Health with Fehr & Peers and HDR Engineering, Inc. for Utah Transit Authority
B10: Funding Partners for Study: | D10: Utah Department of Transportation, Wasatch Front Regional Council, Mountainland Association of Governments, Utah Department of Health, Bike Utah, Weber-Morgan Health Department, Salt Lake County Health Department, Salt Lake County Office of Regional Development, Salt lake County Bicycle Advisory Committee, Tooele County Department of Health, Park City, Intermountain Healthcare, and the Governor's Office of Energy Development
B12: Study Results: | D12: The UATBS employed a software called IMPLAN. IMPLAN was used to calculate multipliers for each county and each benefit factor using "an input-output based regional economic assessment modeling system." The software uses transaction information and data on 20 other economic variables. These multipliers are used and included in this calculator. They can be viewed in the supporting tabs of the spreadsheet.
B14: Instructions:
B15: 1 | D15: Users can input data in shaded cells only
B16: 2 | D16: You must choose a county. If the project crosses county lines you may choose to analyze the benefits for the whole project in the county with the majority of the length or perform an analysis in each county using only the length and user-miles that would occur in each county and add them to determine the total benefit.
B17: 3 | D17: Choose the project type from the drop down list that best describes the infrastructure improvement you are analyzing. Similarly to County, if the project type changes along its length you can choose whether to assume the same project type for it's entirety as a good approximation or split the analysis into parts based on each project type and its corresponding length. Be careful to also split the usage so as not to double count.
B18: 4 | D18: Input the project length in miles. Use a decimal amount for less than one mile.
B19: 5 | D19: If the project is completely new to an area and has independent utility, then the connected miles will equal the project length. If the project is filling a gap in an existing linear path, then the connected miles are those that a user can now travel because the project has connected adjacent paths. Include the length of the project and only those miles directly connected to the project.
B20: 6 | D20: Input a capital cost. This number should be the total dollar amount that you want figured into the economic benefit analysis. Hard and soft costs can be included as long as there is money exchanged.
B21: 7 | D21: Input an annual incremental maintenance cost. Some care should be taken to determine a discrete maintenance cost due to the project, in other words, costs above and beyond any current maintenance costs.
B22: 8 | D22: Use the "buttons" to choose the method for project usage data input. Putting in your own values gives you the most accurate data. Go to the "ProjAdjust&Defaults" tab for an explanation of the default values to determine whether they might work for your analysis.
B23: 9 | D23: Local users are those people who live in the area and are more likely to use the facility often and spontaneously. The economic impact of an active transportation project is created from new user-miles due to the existence of the project. It includes new users, additional miles from existing users, or induced use on connecting facilities. Input low, medium, and high estimates for users per day, miles per user, and days per year. The tool calculates the annual number based on the averages you put in, and uses only that total in the analysis. If you know an annual number, you can input any values that arrive at that number.
B24: 10 | D24: Visitors, tourists and event-goers are people who make a special trip (either day or overnight) to use the facility. They are in addition to local users. In order to assess the visitor impact of the project, be sure to only include those day or overnight trips that would be added to your current visitation rates because of the existence of the project you are considering. These should be input as annual estimates. The analysis is very sensitive to these data, take care to use realistic values for visitor and event estimates.
B26: Notes:
D27: Users are encouraged to familiarize themselves with the Utah Active Transportation Benefits Study for greater understanding of their results.
D28: Output can be displayed on two sides of 11x17 paper in landscape format.
D29: Equipment and Services benefits are only calculated for cyclists and only occur in counties where cycling equipment related businesses are located.
D30: Health and Productivity benefits are only calculated for those local users, assuming a county-specific percentage of the population, that are not getting the recommended amount of exercise of 150 minutes per week.
D31: The Utah Active Transportation Infrastructure Economic Benefits Calculator is a newly developed spreadsheet tool that has not been widely distributed. If you find bugs or have suggestions to improve its usefulness, please submit them to kdoane@rideuta.com with reference to AT Benefits Calculator.

Sheet User Interface
A1: Read me reference
C2: User input in shaded cells | H2: Some factors from Utah Active Transportation Benefits Study Report
H3: Avg Cycling speed (mph) | I3: 12
A4: 1 | B4: Project Name | H4: Avg Walking speed (mph) | I4: 3
B5: Scenario Description | H5: Cycling equipment spending per rider mile | I5: 0.85
B6: Tool user | H6: Day Trip spending per person per trip | I6: 35 | J6: $35 dollars default value
B7: Run Date | C7: =TODAY() -> 2018-11-08 | H7: Overnight spending per person per trip | I7: 182 | J7: $182 dollars default value
H8: % of Trips that are Day trips | I8: 0.28 | J8: 28% is default
A9: 2 | B9: In what County is the project located? (use drop down list) | C9: Beaver | H9: Typical Capital cost of multi-use trail per mile | I9: 750000
A10: 3 | B10: Choose the project type that best fits the scenario you are analyzing (use drop down list) | C10: Base - road infrastructure with no bike/ped facilities | D10: =IF(C10='ProjAdjust&Defaults'!A6,"None",IF(C10='ProjAdjust&Defaults'!A7,"Cyclists Only",IF(OR(C10='ProjAdjust&Defaults'!A10,C10='ProjAdjust&Defaults'!A12)=TRUE,"Pedestrians Only","Both"))) -> None | H10: Annual cost to maintain a multi-use trail per mile | I10: 6300
A11: 4 | B11: How many miles long is the project? | C11: 0 | H11: Average mile per year per cyclist | I11: 547
A12: 5 | B12: How many connected miles might a user now travel because of the existence of the project that they couldn't before? | C12: 0
A13: 6 | B13: What is the total estimated capital cost of the project? | C13: 0 | D13: =C13/C11 ->  | E13: per mile
A14: 7 | B14: Also, estimate what it will cost to maintain this project only, each year. | C14: 0 | D14: =C14/C11 ->  | E14: per mile
A16: 8 | B16: Estimate use of project - you must select one of the two options.
D18: Less than Hoped For | E18: Estimated Use | F18: More than Hoped For
A19: 9 | B19: Local users | C19: Average Cyclist per day
C20: Average Miles per rider
C21: Average Days per Year
C22: Rider-miles per year | D22: =D19*D20*D21 -> 0 | E22: =E19*E20*E21 -> 0 | F22: 0
C24: Average Walkers per day
C25: Average Miles per walker
C26: Average Days per Year
C27: Pedestrian-miles per year | D27: =D24*D25*D26 -> 0 | E27: =E24*E25*E26 -> 0 | F27: 0
A29: 10 | B29: Tourism or Events - Visitors that use the Project | C29: Day trips per year (count each person as a trip)
C30: Overnight trips per year (count each person-night as a trip, e.g. 2 people for 2 nights = 4 trips)
C33: Results
D34: One-time Total Economic Output | E34: # of jobs-years, not necessarily permanent or full-time | F34: Labor Income
C35: Capital Construction | D35: =ROUND($C$13*INDEX(TblCapConstr[$ Total Output ],MATCH(MyCountySelection,TblCapConstr[[County]:[County]],0)),-2) -> 0 | E35: =ROUND($C$13/1000000*INDEX(TblCapConstr['# of Jobs Per $Million],MATCH($C$9,TblCapConstr[County],0))*INDEX(TblProjAdjDefaults[Job and Income Adjustment Factor],MATCH($C$10,TblProjAdjDefaults[Project Types],0)),1) -> 0 | F35: =ROUND($C$13*INDEX(TblCapConstr[$ Income],MATCH(MyCountySelection,TblCapConstr[[County]:[County]],0))*INDEX(TblProjAdjDefaults[Job and Income Adjustment Factor],MATCH($C$10,TblProjAdjDefaults[Project Types],0)),-2) -> 0
C38: Annual Economic Output | D38: Less than Hoped For | E38: Estimated Use | F38: More than Hoped For
C39: Total Annual Economic Output - sum of below | D39: =SUM(D40:D47) -> 0 | E39: =SUM(E40:E47) -> 0 | F39: 0
C40: Annual Facility Maintenance | D40: =ROUND($C$14*INDEX(TblFacMaint[$ Total Output ],MATCH(MyCountySelection,TblFacMaint[County],0)),-2) -> 0 | E40: =ROUND($C$14*INDEX(TblFacMaint[$ Total Output ],MATCH(MyCountySelection,TblFacMaint[County],0)),-2) -> 0 | F40: =ROUND($C$14*INDEX(TblFacMaint[$ Total Output ],MATCH(MyCountySelection,TblFacMaint[County],0)),-2) -> 0
C41: Equipment and Services | D41: =IF(UserGroup="Pedestrians Only",0,ROUND($I$5*D$22*INDEX(TblEquipServ[[$ Total Output ]:[$ Total Output ]],MATCH(MyCountySelection,TblEquipServ[[County]:[County]],0)),-2)) -> 0 | E41: =IF(UserGroup="Pedestrians Only",0,ROUND($I$5*E$22*INDEX(TblEquipServ[[$ Total Output ]:[$ Total Output ]],MATCH(MyCountySelection,TblEquipServ[[County]:[County]],0)),-2)) -> 0 | F41: =IF(UserGroup="Pedestrians Only",0,ROUND($I$5*F$22*INDEX(TblEquipServ[[$ Total Output ]:[$ Total Output ]],MATCH(MyCountySelection,TblEquipServ[[County]:[County]],0)),-2)) -> 0
C42: Day Trips | D42: =ROUND($I$6*D$29*INDEX(TblDayTrips[[$ Total Output ]:[$ Total Output ]],MATCH(MyCountySelection,TblDayTrips[[County]:[County]],0)),-2) -> 0 | E42: =ROUND($I$6*E$29*INDEX(TblDayTrips[[$ Total Output ]:[$ Total Output ]],MATCH(MyCountySelection,TblDayTrips[[County]:[County]],0)),-2) -> 0 | F42: =ROUND($I$6*F$29*INDEX(TblDayTrips[[$ Total Output ]:[$ Total Output ]],MATCH(MyCountySelection,TblDayTrips[[County]:[County]],0)),-2) -> 0
C43: Overnight trips | D43: =ROUND($I$7*D$30*INDEX(TblOvernights[[$ Total Output ]:[$ Total Output ]],MATCH(MyCountySelection,TblOvernights[[County]:[County]],0)),-2) -> 0 | E43: =ROUND($I$7*E$30*INDEX(TblOvernights[[$ Total Output ]:[$ Total Output ]],MATCH(MyCountySelection,TblOvernights[[County]:[County]],0)),-2) -> 0 | F43: =ROUND($I$7*F$30*INDEX(TblOvernights[[$ Total Output ]:[$ Total Output ]],MATCH(MyCountySelection,TblOvernights[[County]:[County]],0)),-2) -> 0
C44: Annual Healthcare Savings - Cyclist | D44: =IF($D$10="pedestrians only",0,ROUND(D$22*INDEX(TblCountyHealth[[% Insufficiently active]:[% Insufficiently active]],MATCH(MyCountySelection,TblHealthCycl[[County]:[County]],0))*INDEX(TblHealthCycl[[$ Total Output ]:[$ Total Output ]],MATCH(MyCountySelection,TblHealthCycl[[County]:[County]],0))*INDEX(TblHealthCycl[[Annual Expenditures ($2016) avoided per Rider-Mile]:[Annual Expenditures ($2016) avoided per Rider-Mile]],MATCH(MyCountySelection,TblHealthCycl[[County]:[County]],0)),-2)) -> 0 | E44: =IF($D$10="pedestrians only",0,ROUND(E$22*INDEX(TblCountyHealth[[% Insufficiently active]:[% Insufficiently active]],MATCH(MyCountySelection,TblHealthCycl[[County]:[County]],0))*INDEX(TblHealthCycl[[$ Total Output ]:[$ Total Output ]],MATCH(MyCountySelection,TblHealthCycl[[County]:[County]],0))*INDEX(TblHealthCycl[[Annual Expenditures ($2016) avoided per Rider-Mile]:[Annual Expenditures ($2016) avoided per Rider-Mile]],MATCH(MyCountySelection,TblHealthCycl[[County]:[County]],0)),-2)) -> 0 | F44: =IF($D$10="pedestrians only",0,ROUND(F$22*INDEX(TblCountyHealth[[% Insufficiently active]:[% Insufficiently active]],MATCH(MyCountySelection,TblHealthCycl[[County]:[County]],0))*INDEX(TblHealthCycl[[$ Total Output ]:[$ Total Output ]],MATCH(MyCountySelection,TblHealthCycl[[County]:[County]],0))*INDEX(TblHealthCycl[[Annual Expenditures ($2016) avoided per Rider-Mile]:[Annual Expenditures ($2016) avoided per Rider-Mile]],MATCH(MyCountySelection,TblHealthCycl[[County]:[County]],0)),-2)) -> 0
C45: Annual Healthcare Savings - Pedestrians | D45: =IF($D$10="cylcists only",0,ROUND(D$27*INDEX(TblCountyHealth[[% Insufficiently active]:[% Insufficiently active]],MATCH(MyCountySelection,TblHealthCycl[[County]:[County]],0))*INDEX(TblHealthPed[[$ Total Output ]:[$ Total Output ]],MATCH(MyCountySelection,TblHealthPed[[County]:[County]],0))*INDEX(TblHealthPed[[Annual Expenditures ($2016) avoided per Person-Mile*]:[Annual Expenditures ($2016) avoided per Person-Mile*]],MATCH(MyCountySelection,TblHealthPed[[County]:[County]],0)),-2)) -> 0 | E45: =IF($D$10="cylcists only",0,ROUND(E$27*INDEX(TblCountyHealth[[% Insufficiently active]:[% Insufficiently active]],MATCH(MyCountySelection,TblHealthCycl[[County]:[County]],0))*INDEX(TblHealthPed[[$ Total Output ]:[$ Total Output ]],MATCH(MyCountySelection,TblHealthPed[[County]:[County]],0))*INDEX(TblHealthPed[[Annual Expenditures ($2016) avoided per Person-Mile*]:[Annual Expenditures ($2016) avoided per Person-Mile*]],MATCH(MyCountySelection,TblHealthPed[[County]:[County]],0)),-2)) -> 0 | F45: =IF($D$10="cylcists only",0,ROUND(F$27*INDEX(TblCountyHealth[[% Insufficiently active]:[% Insufficiently active]],MATCH(MyCountySelection,TblHealthCycl[[County]:[County]],0))*INDEX(TblHealthPed[[$ Total Output ]:[$ Total Output ]],MATCH(MyCountySelection,TblHealthPed[[County]:[County]],0))*INDEX(TblHealthPed[[Annual Expenditures ($2016) avoided per Person-Mile*]:[Annual Expenditures ($2016) avoided per Person-Mile*]],MATCH(MyCountySelection,TblHealthPed[[County]:[County]],0)),-2)) -> 0
C46: Annual Reduced Absenteeism - Cyclist | D46: =IF($D$10="Pedestrians Only",0,ROUND(D$22*INDEX(TblCountyHealth[[% Insufficiently active]:[% Insufficiently active]],MATCH(MyCountySelection,TblProdCycl[[County]:[County]],0))*INDEX(TblProdCycl[[$ Total Output ]:[$ Total Output ]],MATCH(MyCountySelection,TblProdCycl[[County]:[County]],0))*INDEX(TblProdCycl[[Annual absentee days not taken per mile ridden]:[Annual absentee days not taken per mile ridden]],MATCH(MyCountySelection,TblProdCycl[[County]:[County]],0))*INDEX(TblProdCycl[[Output per Employee per day ($)]:[Output per Employee per day ($)]],MATCH(MyCountySelection,TblProdCycl[[County]:[County]],0)),-2)) -> 0 | E46: =IF($D$10="Pedestrians Only",0,ROUND(E$22*INDEX(TblCountyHealth[[% Insufficiently active]:[% Insufficiently active]],MATCH(MyCountySelection,TblProdCycl[[County]:[County]],0))*INDEX(TblProdCycl[[$ Total Output ]:[$ Total Output ]],MATCH(MyCountySelection,TblProdCycl[[County]:[County]],0))*INDEX(TblProdCycl[[Annual absentee days not taken per mile ridden]:[Annual absentee days not taken per mile ridden]],MATCH(MyCountySelection,TblProdCycl[[County]:[County]],0))*INDEX(TblProdCycl[[Output per Employee per day ($)]:[Output per Employee per day ($)]],MATCH(MyCountySelection,TblProdCycl[[County]:[County]],0)),-2)) -> 0 | F46: =IF($D$10="Pedestrians Only",0,ROUND(F$22*INDEX(TblCountyHealth[[% Insufficiently active]:[% Insufficiently active]],MATCH(MyCountySelection,TblProdCycl[[County]:[County]],0))*INDEX(TblProdCycl[[$ Total Output ]:[$ Total Output ]],MATCH(MyCountySelection,TblProdCycl[[County]:[County]],0))*INDEX(TblProdCycl[[Annual absentee days not taken per mile ridden]:[Annual absentee days not taken per mile ridden]],MATCH(MyCountySelection,TblProdCycl[[County]:[County]],0))*INDEX(TblProdCycl[[Output per Employee per day ($)]:[Output per Employee per day ($)]],MATCH(MyCountySelection,TblProdCycl[[County]:[County]],0)),-2)) -> 0
C47: Annual Reduced Absenteeism - Pedestrians | D47: =IF($D$10="Pedestrians Only",0,ROUND(D$27*INDEX(TblCountyHealth[[% Insufficiently active]:[% Insufficiently active]],MATCH(MyCountySelection,TblProdPed[[County]:[County]],0))*INDEX(TblProdPed[[$ Total Output ]:[$ Total Output ]],MATCH(MyCountySelection,TblProdPed[[County]:[County]],0))*INDEX(TblProdPed[[Annual absentee days not taken per mile walked]:[Annual absentee days not taken per mile walked]],MATCH(MyCountySelection,TblProdPed[[County]:[County]],0))*INDEX(TblProdPed[[Output per Employee per day ($)]:[Output per Employee per day ($)]],MATCH(MyCountySelection,TblProdPed[[County]:[County]],0)),-2)) -> 0 | E47: =IF($D$10="Pedestrians Only",0,ROUND(E$27*INDEX(TblCountyHealth[[% Insufficiently active]:[% Insufficiently active]],MATCH(MyCountySelection,TblProdPed[[County]:[County]],0))*INDEX(TblProdPed[[$ Total Output ]:[$ Total Output ]],MATCH(MyCountySelection,TblProdPed[[County]:[County]],0))*INDEX(TblProdPed[[Annual absentee days not taken per mile walked]:[Annual absentee days not taken per mile walked]],MATCH(MyCountySelection,TblProdPed[[County]:[County]],0))*INDEX(TblProdPed[[Output per Employee per day ($)]:[Output per Employee per day ($)]],MATCH(MyCountySelection,TblProdPed[[County]:[County]],0)),-2)) -> 0 | F47: =IF($D$10="Pedestrians Only",0,ROUND(F$27*INDEX(TblCountyHealth[[% Insufficiently active]:[% Insufficiently active]],MATCH(MyCountySelection,TblProdPed[[County]:[County]],0))*INDEX(TblProdPed[[$ Total Output ]:[$ Total Output ]],MATCH(MyCountySelection,TblProdPed[[County]:[County]],0))*INDEX(TblProdPed[[Annual absentee days not taken per mile walked]:[Annual absentee days not taken per mile walked]],MATCH(MyCountySelection,TblProdPed[[County]:[County]],0))*INDEX(TblProdPed[[Output per Employee per day ($)]:[Output per Employee per day ($)]],MATCH(MyCountySelection,TblProdPed[[County]:[County]],0)),-2)) -> 0
C49: Number of Job-years
C50: Total Job-years - sum of below | D50: =SUM(D51:D58) -> 0 | E50: =SUM(E51:E58) -> 0 | F50: 0
C51: Annual Facility Maintenance | D51: =ROUND($C$14/1000000*INDEX(TblFacMaint[['# of Jobs Per $Million]:['# of Jobs Per $Million]],MATCH(MyCountySelection,TblFacMaint[[County]:[County]],0))*INDEX(TblProjAdjDefaults[[Job and Income Adjustment Factor]:[Job and Income Adjustment Factor]],MATCH(ProjectSelect,TblProjAdjDefaults[[Project Types]:[Project Types]],0)),1) -> 0 | E51: =ROUND($C$14/1000000*INDEX(TblFacMaint[['# of Jobs Per $Million]:['# of Jobs Per $Million]],MATCH(MyCountySelection,TblFacMaint[[County]:[County]],0))*INDEX(TblProjAdjDefaults[[Job and Income Adjustment Factor]:[Job and Income Adjustment Factor]],MATCH(ProjectSelect,TblProjAdjDefaults[[Project Types]:[Project Types]],0)),1) -> 0 | F51: =ROUND($C$14/1000000*INDEX(TblFacMaint[['# of Jobs Per $Million]:['# of Jobs Per $Million]],MATCH(MyCountySelection,TblFacMaint[[County]:[County]],0))*INDEX(TblProjAdjDefaults[[Job and Income Adjustment Factor]:[Job and Income Adjustment Factor]],MATCH(ProjectSelect,TblProjAdjDefaults[[Project Types]:[Project Types]],0)),1) -> 0
C52: Equipment and Services | D52: =IF($D$10="Pedestrians Only",0,ROUND($I$5*D$22/1000000*INDEX(TblEquipServ[['# of Jobs Per $Million]:['# of Jobs Per $Million]],MATCH(MyCountySelection,TblEquipServ[[County]:[County]],0)),1)) -> 0 | E52: =IF($D$10="Pedestrians Only",0,ROUND($I$5*E$22/1000000*VLOOKUP($C$9,EquipServ!$A$8:$D$36,3),1)) -> 0 | F52: =IF($D$10="Pedestrians Only",0,ROUND($I$5*F$22/1000000*VLOOKUP($C$9,EquipServ!$A$8:$D$36,3),1)) -> 0
C53: Day Trips | D53: =ROUND($I$6*D$29/1000000*INDEX(TblDayTrips[['# of Jobs Per $Million]:['# of Jobs Per $Million]],MATCH(MyCountySelection,TblDayTrips[[County]:[County]],0)),1) -> 0 | E53: =ROUND($I$6*E$29/1000000*INDEX(TblDayTrips[['# of Jobs Per $Million]:['# of Jobs Per $Million]],MATCH(MyCountySelection,TblDayTrips[[County]:[County]],0)),1) -> 0 | F53: =ROUND($I$6*F$29/1000000*INDEX(TblDayTrips[['# of Jobs Per $Million]:['# of Jobs Per $Million]],MATCH(MyCountySelection,TblDayTrips[[County]:[County]],0)),1) -> 0
C54: Overnight trips | D54: =ROUND($I$7*D$30/1000000*INDEX(TblOvernights[['# of Jobs Per $Million]:['# of Jobs Per $Million]],MATCH(MyCountySelection,TblDayTrips[[County]:[County]],0)),1) -> 0 | E54: =ROUND($I$7*E$30/1000000*INDEX(TblOvernights[['# of Jobs Per $Million]:['# of Jobs Per $Million]],MATCH(MyCountySelection,TblDayTrips[[County]:[County]],0)),1) -> 0 | F54: =ROUND($I$7*F$30/1000000*INDEX(TblOvernights[['# of Jobs Per $Million]:['# of Jobs Per $Million]],MATCH(MyCountySelection,TblDayTrips[[County]:[County]],0)),1) -> 0
C55: Annual Healthcare Savings - Cyclist | D55: =IF($D$10="pedestrians only",0,ROUND(D$22/1000000*INDEX(TblCountyHealth[[% Insufficiently active]:[% Insufficiently active]],MATCH(MyCountySelection,TblHealthCycl[[County]:[County]],0))*INDEX(TblHealthCycl[['# of Jobs Per $Million]:['# of Jobs Per $Million]],MATCH(MyCountySelection,TblHealthCycl[[County]:[County]],0))*INDEX(TblHealthCycl[[Annual Expenditures ($2016) avoided per Rider-Mile]:[Annual Expenditures ($2016) avoided per Rider-Mile]],MATCH(MyCountySelection,TblHealthCycl[[County]:[County]],0)),1)) -> 0 | E55: =IF($D$10="pedestrians only",0,ROUND(E$22/1000000*INDEX(TblCountyHealth[[% Insufficiently active]:[% Insufficiently active]],MATCH(MyCountySelection,TblHealthCycl[[County]:[County]],0))*INDEX(TblHealthCycl[['# of Jobs Per $Million]:['# of Jobs Per $Million]],MATCH(MyCountySelection,TblHealthCycl[[County]:[County]],0))*INDEX(TblHealthCycl[[Annual Expenditures ($2016) avoided per Rider-Mile]:[Annual Expenditures ($2016) avoided per Rider-Mile]],MATCH(MyCountySelection,TblHealthCycl[[County]:[County]],0)),1)) -> 0 | F55: =IF($D$10="pedestrians only",0,ROUND(F$22/1000000*INDEX(TblCountyHealth[[% Insufficiently active]:[% Insufficiently active]],MATCH(MyCountySelection,TblHealthCycl[[County]:[County]],0))*INDEX(TblHealthCycl[['# of Jobs Per $Million]:['# of Jobs Per $Million]],MATCH(MyCountySelection,TblHealthCycl[[County]:[County]],0))*INDEX(TblHealthCycl[[Annual Expenditures ($2016) avoided per Rider-Mile]:[Annual Expenditures ($2016) avoided per Rider-Mile]],MATCH(MyCountySelection,TblHealthCycl[[County]:[County]],0)),1)) -> 0
C56: Annual Healthcare Savings - Pedestrians | D56: =IF($D$10="pedestrians only",0,ROUND(D$27/1000000*INDEX(TblCountyHealth[[% Insufficiently active]:[% Insufficiently active]],MATCH(MyCountySelection,TblHealthCycl[[County]:[County]],0))*INDEX(TblHealthPed[['# of Jobs Per $Million]:['# of Jobs Per $Million]],MATCH(MyCountySelection,TblHealthPed[[County]:[County]],0))*INDEX(TblHealthPed[[Annual Expenditures ($2016) avoided per Person-Mile*]:[Annual Expenditures ($2016) avoided per Person-Mile*]],MATCH(MyCountySelection,TblHealthPed[[County]:[County]],0)),1)) -> 0 | E56: =IF($D$10="pedestrians only",0,ROUND(E$27/1000000*INDEX(TblCountyHealth[[% Insufficiently active]:[% Insufficiently active]],MATCH(MyCountySelection,TblHealthCycl[[County]:[County]],0))*INDEX(TblHealthPed[['# of Jobs Per $Million]:['# of Jobs Per $Million]],MATCH(MyCountySelection,TblHealthPed[[County]:[County]],0))*INDEX(TblHealthPed[[Annual Expenditures ($2016) avoided per Person-Mile*]:[Annual Expenditures ($2016) avoided per Person-Mile*]],MATCH(MyCountySelection,TblHealthPed[[County]:[County]],0)),1)) -> 0 | F56: =IF($D$10="pedestrians only",0,ROUND(F$27/1000000*INDEX(TblCountyHealth[[% Insufficiently active]:[% Insufficiently active]],MATCH(MyCountySelection,TblHealthCycl[[County]:[County]],0))*INDEX(TblHealthPed[['# of Jobs Per $Million]:['# of Jobs Per $Million]],MATCH(MyCountySelection,TblHealthPed[[County]:[County]],0))*INDEX(TblHealthPed[[Annual Expenditures ($2016) avoided per Person-Mile*]:[Annual Expenditures ($2016) avoided per Person-Mile*]],MATCH(MyCountySelection,TblHealthPed[[County]:[County]],0)),1)) -> 0
C57: Annual Reduced Absenteeism - Cyclist | D57: =IF($D$10="pedestrians only",0,ROUND(D$22/1000000*INDEX(TblCountyHealth[[% Insufficiently active]:[% Insufficiently active]],MATCH(MyCountySelection,TblHealthCycl[[County]:[County]],0))*INDEX(TblProdCycl[['# of Jobs Per $Million]:['# of Jobs Per $Million]],MATCH(MyCountySelection,TblProdCycl[[County]:[County]],0))*INDEX(TblProdCycl[[Annual absentee days not taken per mile ridden]:[Annual absentee days not taken per mile ridden]],MATCH(MyCountySelection,TblProdCycl[[County]:[County]],0))*INDEX(TblProdCycl[[Output per Employee per day ($)]:[Output per Employee per day ($)]],MATCH(MyCountySelection,TblProdCycl[[County]:[County]],0)),1)) -> 0 | E57: =IF($D$10="pedestrians only",0,ROUND(E$22/1000000*INDEX(TblCountyHealth[[% Insufficiently active]:[% Insufficiently active]],MATCH(MyCountySelection,TblHealthCycl[[County]:[County]],0))*INDEX(TblProdCycl[['# of Jobs Per $Million]:['# of Jobs Per $Million]],MATCH(MyCountySelection,TblProdCycl[[County]:[County]],0))*INDEX(TblProdCycl[[Annual absentee days not taken per mile ridden]:[Annual absentee days not taken per mile ridden]],MATCH(MyCountySelection,TblProdCycl[[County]:[County]],0))*INDEX(TblProdCycl[[Output per Employee per day ($)]:[Output per Employee per day ($)]],MATCH(MyCountySelection,TblProdCycl[[County]:[County]],0)),1)) -> 0 | F57: =IF($D$10="pedestrians only",0,ROUND(F$22/1000000*INDEX(TblCountyHealth[[% Insufficiently active]:[% Insufficiently active]],MATCH(MyCountySelection,TblHealthCycl[[County]:[County]],0))*INDEX(TblProdCycl[['# of Jobs Per $Million]:['# of Jobs Per $Million]],MATCH(MyCountySelection,TblProdCycl[[County]:[County]],0))*INDEX(TblProdCycl[[Annual absentee days not taken per mile ridden]:[Annual absentee days not taken per mile ridden]],MATCH(MyCountySelection,TblProdCycl[[County]:[County]],0))*INDEX(TblProdCycl[[Output per Employee per day ($)]:[Output per Employee per day ($)]],MATCH(MyCountySelection,TblProdCycl[[County]:[County]],0)),1)) -> 0
C58: Annual Reduced Absenteeism - Pedestrians | D58: =IF($D$10="pedestrians only",0,ROUND(D$27/1000000*INDEX(TblCountyHealth[[% Insufficiently active]:[% Insufficiently active]],MATCH(MyCountySelection,TblHealthCycl[[County]:[County]],0))*INDEX(TblProdPed[['# of Jobs Per $Million]:['# of Jobs Per $Million]],MATCH(MyCountySelection,TblProdPed[[County]:[County]],0))*INDEX(TblProdPed[[Annual absentee days not taken per mile walked]:[Annual absentee days not taken per mile walked]],MATCH(MyCountySelection,TblProdPed[[County]:[County]],0))*INDEX(TblProdPed[[Output per Employee per day ($)]:[Output per Employee per day ($)]],MATCH(MyCountySelection,TblProdPed[[County]:[County]],0)),1)) -> 0 | E58: =IF($D$10="pedestrians only",0,ROUND(E$27/1000000*INDEX(TblCountyHealth[[% Insufficiently active]:[% Insufficiently active]],MATCH(MyCountySelection,TblHealthCycl[[County]:[County]],0))*INDEX(TblProdPed[['# of Jobs Per $Million]:['# of Jobs Per $Million]],MATCH(MyCountySelection,TblProdPed[[County]:[County]],0))*INDEX(TblProdPed[[Annual absentee days not taken per mile walked]:[Annual absentee days not taken per mile walked]],MATCH(MyCountySelection,TblProdPed[[County]:[County]],0))*INDEX(TblProdPed[[Output per Employee per day ($)]:[Output per Employee per day ($)]],MATCH(MyCountySelection,TblProdPed[[County]:[County]],0)),1)) -> 0 | F58: =IF($D$10="pedestrians only",0,ROUND(F$27/1000000*INDEX(TblCountyHealth[[% Insufficiently active]:[% Insufficiently active]],MATCH(MyCountySelection,TblHealthCycl[[County]:[County]],0))*INDEX(TblProdPed[['# of Jobs Per $Million]:['# of Jobs Per $Million]],MATCH(MyCountySelection,TblProdPed[[County]:[County]],0))*INDEX(TblProdPed[[Annual absentee days not taken per mile walked]:[Annual absentee days not taken per mile walked]],MATCH(MyCountySelection,TblProdPed[[County]:[County]],0))*INDEX(TblProdPed[[Output per Employee per day ($)]:[Output per Employee per day ($)]],MATCH(MyCountySelection,TblProdPed[[County]:[County]],0)),1)) -> 0
C60: Annual Labor Income
C61: Total Annual Labor Income - sum of below | D61: =SUM(D62:D69) -> 0 | E61: =SUM(E62:E69) -> 0 | F61: 0
C62: Annual Facility Maintenance | D62: =ROUND($C$14*INDEX(TblFacMaint[[$ Income]:[$ Income]],MATCH(MyCountySelection,TblFacMaint[[County]:[County]],0))*INDEX(TblProjAdjDefaults[[Job and Income Adjustment Factor]:[Job and Income Adjustment Factor]],MATCH(ProjectSelect,TblProjAdjDefaults[[Project Types]:[Project Types]],0)),-2) -> 0 | E62: =ROUND($C$14*INDEX(TblFacMaint[[$ Income]:[$ Income]],MATCH(MyCountySelection,TblFacMaint[[County]:[County]],0))*INDEX(TblProjAdjDefaults[[Job and Income Adjustment Factor]:[Job and Income Adjustment Factor]],MATCH(ProjectSelect,TblProjAdjDefaults[[Project Types]:[Project Types]],0)),-2) -> 0 | F62: =ROUND($C$14*INDEX(TblFacMaint[[$ Income]:[$ Income]],MATCH(MyCountySelection,TblFacMaint[[County]:[County]],0))*INDEX(TblProjAdjDefaults[[Job and Income Adjustment Factor]:[Job and Income Adjustment Factor]],MATCH(ProjectSelect,TblProjAdjDefaults[[Project Types]:[Project Types]],0)),-2) -> 0
C63: Equipment and Services | D63: =IF(UserGroup="Pedestrians Only",0,ROUND($I$5*D$22*INDEX(TblEquipServ[[$ Income]:[$ Income]],MATCH(MyCountySelection,TblEquipServ[[County]:[County]],0)),-2)) -> 0 | E63: =IF(UserGroup="Pedestrians Only",0,ROUND($I$5*E$22*INDEX(TblEquipServ[[$ Income]:[$ Income]],MATCH(MyCountySelection,TblEquipServ[[County]:[County]],0)),-2)) -> 0 | F63: =IF(UserGroup="Pedestrians Only",0,ROUND($I$5*F$22*INDEX(TblEquipServ[[$ Income]:[$ Income]],MATCH(MyCountySelection,TblEquipServ[[County]:[County]],0)),-2)) -> 0
C64: Day Trips | D64: =ROUND($I$6*D$29*INDEX(TblDayTrips[[$ Income]:[$ Income]],MATCH(MyCountySelection,TblDayTrips[[County]:[County]],0)),-2) -> 0 | E64: =ROUND($I$6*E$29*INDEX(TblDayTrips[[$ Income]:[$ Income]],MATCH(MyCountySelection,TblDayTrips[[County]:[County]],0)),-2) -> 0 | F64: =ROUND($I$6*F$29*INDEX(TblDayTrips[[$ Income]:[$ Income]],MATCH(MyCountySelection,TblDayTrips[[County]:[County]],0)),-2) -> 0
C65: Overnight trips | D65: =ROUND($I$7*D$30*INDEX(TblOvernights[[$ Income]:[$ Income]],MATCH(MyCountySelection,TblOvernights[[County]:[County]],0)),-2) -> 0 | E65: =ROUND($I$7*E$30*INDEX(TblOvernights[[$ Income]:[$ Income]],MATCH(MyCountySelection,TblOvernights[[County]:[County]],0)),-2) -> 0 | F65: =ROUND($I$7*F$30*INDEX(TblOvernights[[$ Income]:[$ Income]],MATCH(MyCountySelection,TblOvernights[[County]:[County]],0)),-2) -> 0
C66: Annual Healthcare Savings - Cyclist | D66: =IF($D$10="pedestrians only",0,ROUND(D$22*INDEX(TblCountyHealth[[% Insufficiently active]:[% Insufficiently active]],MATCH(MyCountySelection,TblHealthCycl[[County]:[County]],0))*INDEX(TblHealthCycl[[$ Income]:[$ Income]],MATCH(MyCountySelection,TblHealthCycl[[County]:[County]],0))*INDEX(TblHealthCycl[[Annual Expenditures ($2016) avoided per Rider-Mile]:[Annual Expenditures ($2016) avoided per Rider-Mile]],MATCH(MyCountySelection,TblHealthCycl[[County]:[County]],0)),-2)) -> 0 | E66: =IF($D$10="pedestrians only",0,ROUND(E$22*INDEX(TblCountyHealth[[% Insufficiently active]:[% Insufficiently active]],MATCH(MyCountySelection,TblHealthCycl[[County]:[County]],0))*INDEX(TblHealthCycl[[$ Income]:[$ Income]],MATCH(MyCountySelection,TblHealthCycl[[County]:[County]],0))*INDEX(TblHealthCycl[[Annual Expenditures ($2016) avoided per Rider-Mile]:[Annual Expenditures ($2016) avoided per Rider-Mile]],MATCH(MyCountySelection,TblHealthCycl[[County]:[County]],0)),-2)) -> 0 | F66: =IF($D$10="pedestrians only",0,ROUND(F$22*INDEX(TblCountyHealth[[% Insufficiently active]:[% Insufficiently active]],MATCH(MyCountySelection,TblHealthCycl[[County]:[County]],0))*INDEX(TblHealthCycl[[$ Income]:[$ Income]],MATCH(MyCountySelection,TblHealthCycl[[County]:[County]],0))*INDEX(TblHealthCycl[[Annual Expenditures ($2016) avoided per Rider-Mile]:[Annual Expenditures ($2016) avoided per Rider-Mile]],MATCH(MyCountySelection,TblHealthCycl[[County]:[County]],0)),-2)) -> 0
C67: Annual Healthcare Savings - Pedestrians | D67: =IF($D$10="cylcists only",0,ROUND(D$27*INDEX(TblCountyHealth[[% Insufficiently active]:[% Insufficiently active]],MATCH(MyCountySelection,TblHealthCycl[[County]:[County]],0))*INDEX(TblHealthPed[[$ Income]:[$ Income]],MATCH(MyCountySelection,TblHealthPed[[County]:[County]],0))*INDEX(TblHealthPed[[Annual Expenditures ($2016) avoided per Person-Mile*]:[Annual Expenditures ($2016) avoided per Person-Mile*]],MATCH(MyCountySelection,TblHealthPed[[County]:[County]],0)),-2)) -> 0 | E67: =IF($D$10="cylcists only",0,ROUND(E$27*INDEX(TblCountyHealth[[% Insufficiently active]:[% Insufficiently active]],MATCH(MyCountySelection,TblHealthCycl[[County]:[County]],0))*INDEX(TblHealthPed[[$ Income]:[$ Income]],MATCH(MyCountySelection,TblHealthPed[[County]:[County]],0))*INDEX(TblHealthPed[[Annual Expenditures ($2016) avoided per Person-Mile*]:[Annual Expenditures ($2016) avoided per Person-Mile*]],MATCH(MyCountySelection,TblHealthPed[[County]:[County]],0)),-2)) -> 0 | F67: =IF($D$10="cylcists only",0,ROUND(F$27*INDEX(TblCountyHealth[[% Insufficiently active]:[% Insufficiently active]],MATCH(MyCountySelection,TblHealthCycl[[County]:[County]],0))*INDEX(TblHealthPed[[$ Income]:[$ Income]],MATCH(MyCountySelection,TblHealthPed[[County]:[County]],0))*INDEX(TblHealthPed[[Annual Expenditures ($2016) avoided per Person-Mile*]:[Annual Expenditures ($2016) avoided per Person-Mile*]],MATCH(MyCountySelection,TblHealthPed[[County]:[County]],0)),-2)) -> 0
C68: Annual Reduced Absenteeism - Cyclist | D68: =IF($D$10="Pedestrians Only",0,ROUND(D$22*INDEX(TblCountyHealth[[% Insufficiently active]:[% Insufficiently active]],MATCH(MyCountySelection,TblProdCycl[[County]:[County]],0))*INDEX(TblProdCycl[[$ Income]:[$ Income]],MATCH(MyCountySelection,TblProdCycl[[County]:[County]],0))*INDEX(TblProdCycl[[Annual absentee days not taken per mile ridden]:[Annual absentee days not taken per mile ridden]],MATCH(MyCountySelection,TblProdCycl[[County]:[County]],0))*INDEX(TblProdCycl[[Output per Employee per day ($)]:[Output per Employee per day ($)]],MATCH(MyCountySelection,TblProdCycl[[County]:[County]],0)),-2)) -> 0 | E68: =IF($D$10="Pedestrians Only",0,ROUND(E$22*INDEX(TblCountyHealth[[% Insufficiently active]:[% Insufficiently active]],MATCH(MyCountySelection,TblProdCycl[[County]:[County]],0))*INDEX(TblProdCycl[[$ Income]:[$ Income]],MATCH(MyCountySelection,TblProdCycl[[County]:[County]],0))*INDEX(TblProdCycl[[Annual absentee days not taken per mile ridden]:[Annual absentee days not taken per mile ridden]],MATCH(MyCountySelection,TblProdCycl[[County]:[County]],0))*INDEX(TblProdCycl[[Output per Employee per day ($)]:[Output per Employee per day ($)]],MATCH(MyCountySelection,TblProdCycl[[County]:[County]],0)),-2)) -> 0 | F68: =IF($D$10="Pedestrians Only",0,ROUND(F$22*INDEX(TblCountyHealth[[% Insufficiently active]:[% Insufficiently active]],MATCH(MyCountySelection,TblProdCycl[[County]:[County]],0))*INDEX(TblProdCycl[[$ Income]:[$ Income]],MATCH(MyCountySelection,TblProdCycl[[County]:[County]],0))*INDEX(TblProdCycl[[Annual absentee days not taken per mile ridden]:[Annual absentee days not taken per mile ridden]],MATCH(MyCountySelection,TblProdCycl[[County]:[County]],0))*INDEX(TblProdCycl[[Output per Employee per day ($)]:[Output per Employee per day ($)]],MATCH(MyCountySelection,TblProdCycl[[County]:[County]],0)),-2)) -> 0
C69: Annual Reduced Absenteeism - Pedestrians | D69: =IF($D$10="Pedestrians Only",0,ROUND(D$27*INDEX(TblCountyHealth[[% Insufficiently active]:[% Insufficiently active]],MATCH(MyCountySelection,TblProdPed[[County]:[County]],0))*INDEX(TblProdPed[[$ Income]:[$ Income]],MATCH(MyCountySelection,TblProdPed[[County]:[County]],0))*INDEX(TblProdPed[[Annual absentee days not taken per mile walked]:[Annual absentee days not taken per mile walked]],MATCH(MyCountySelection,TblProdPed[[County]:[County]],0))*INDEX(TblProdPed[[Output per Employee per day ($)]:[Output per Employee per day ($)]],MATCH(MyCountySelection,TblProdPed[[County]:[County]],0)),-2)) -> 0 | E69: =IF($D$10="Pedestrians Only",0,ROUND(E$27*INDEX(TblCountyHealth[[% Insufficiently active]:[% Insufficiently active]],MATCH(MyCountySelection,TblProdPed[[County]:[County]],0))*INDEX(TblProdPed[[$ Income]:[$ Income]],MATCH(MyCountySelection,TblProdPed[[County]:[County]],0))*INDEX(TblProdPed[[Annual absentee days not taken per mile walked]:[Annual absentee days not taken per mile walked]],MATCH(MyCountySelection,TblProdPed[[County]:[County]],0))*INDEX(TblProdPed[[Output per Employee per day ($)]:[Output per Employee per day ($)]],MATCH(MyCountySelection,TblProdPed[[County]:[County]],0)),-2)) -> 0 | F69: =IF($D$10="Pedestrians Only",0,ROUND(F$27*INDEX(TblCountyHealth[[% Insufficiently active]:[% Insufficiently active]],MATCH(MyCountySelection,TblProdPed[[County]:[County]],0))*INDEX(TblProdPed[[$ Income]:[$ Income]],MATCH(MyCountySelection,TblProdPed[[County]:[County]],0))*INDEX(TblProdPed[[Annual absentee days not taken per mile walked]:[Annual absentee days not taken per mile walked]],MATCH(MyCountySelection,TblProdPed[[County]:[County]],0))*INDEX(TblProdPed[[Output per Employee per day ($)]:[Output per Employee per day ($)]],MATCH(MyCountySelection,TblProdPed[[County]:[County]],0)),-2)) -> 0

Sheet ProjAdjust&Defaults
A1: Source, Job and Income Factor only: | B1: Economic Impacts of Active Transportation: Utah Active Transportation Benefits Study, Table 8. See UATBS_Final_Report_20170428.pdf
A2: Default typical calculation (annual user-miles) | B2: =trip length x number of users x days per year
A3: Default typical calculation (visitor/event trips) | B3: =(people per group x groups per instance x average days per trip x times per year) + (number of events per year x participants per event x day/overnight trip factor)
A5: Project Types | B5: Job and Income Adjustment Factor | C5: Default Low Cyclist Rider-miles | D5: Default Estimated Cyclist Rider-miles | E5: Default High Cyclist Rider-miles | F5: Default Low Pedestrian person-miles | G5: Default Estimated Pedestrian person-miles | H5: Default High Pedestrian person-miles | I5: Default Low Day trips | J5: Default Estimated Day trips | K5: Default High Day trips | L5: Default Low Overnight trips | M5: Default Estimated Overnight trips | N5: Default High Overnight trips
A6: Base - road infrastructure with no bike/ped facilities | B6: 1 | C6: 0 | D6: 0 | E6: 0 | F6: 0 | G6: 0 | H6: 0 | I6: 0 | J6: 0 | K6: 0 | L6: 0 | M6: 0 | N6: 0
A7: Bicycle infrastructure only | B7: 1.47 | C7: =MaxUserMiles*10*100 -> 0 | D7: =MaxUserMiles*15*150 -> 0 | E7: =MaxUserMiles*20*250 -> 0 | F7: 0 | G7: 0 | H7: 0 | I7: =(2*2*1*10)+(0*0*PercDayTrips) -> 40 | J7: =(2*10*1*20)+(0*100*PercDayTrips) -> 400 | K7: =(4*10*1*30)+(1*300*PercDayTrips) -> 1284 | L7: =(2*2*1*0)+(0*0*(1-PercDayTrips)) -> 0 | M7: =(2*4*2*10)+(0*300*(1-PercDayTrips)) -> 160 | N7: =(4*10*2*20)+(1*300*(1-PercDayTrips)) -> 1816
A8: Off-street multi-use trails | B8: 1.23 | C8: =MaxUserMiles*10*100 -> 0 | D8: =MaxUserMiles*20*150 -> 0 | E8: =MaxUserMiles*25*300 -> 0 | F8: =1*10*100 -> 1000 | G8: =3*10*150 -> 4500 | H8: =5*20*250 -> 25000 | I8: =(2*2*1*20)+(0*0*PercDayTrips) -> 80 | J8: =(2*10*1*30)+(1*300*PercDayTrips) -> 684 | K8: =(4*10*1*30)+(2*500*PercDayTrips) -> 1480 | L8: 0 | M8: =(4*4*2*10)+(1*300*(1-PercDayTrips)) -> 536 | N8: =(4*20*2*20)+(2*500*(1-PercDayTrips)) -> 3920
A9: On-street bicycle and pedestrian facilities (no road construction) | B9: 1.09 | C9: =MaxUserMiles*10*100 -> 0 | D9: =MaxUserMiles*15*150 -> 0 | E9: =MaxUserMiles*20*250 -> 0 | F9: =1*5*100 -> 500 | G9: =3*10*100 -> 3000 | H9: =5*20*150 -> 15000 | I9: =(2*2*1*10)+(0*0*PercDayTrips) -> 40 | J9: =(2*10*1*20)+(0*100*PercDayTrips) -> 400 | K9: =(4*10*1*30)+(1*300*PercDayTrips) -> 1284 | L9: 0 | M9: =(2*4*2*10)+(0*300*(1-PercDayTrips)) -> 160 | N9: =(4*10*2*20)+(1*300*(1-PercDayTrips)) -> 1816
A10: Pedestrian infrastructure only | B10: 1.28 | C10: 0 | D10: 0 | E10: 0 | F10: =1*5*100 -> 500 | G10: =3*10*100 -> 3000 | H10: =5*20*150 -> 15000 | I10: =(2*2*1*0)+(0*0*PercDayTrips) -> 0 | J10: =(2*2*1*20)+(0*0*PercDayTrips) -> 80 | K10: =(2*2*1*50)+(1*300*PercDayTrips) -> 284 | L10: 0 | M10: =(0*2*1*20)+(0*0*(1-PercDayTrips)) -> 0 | N10: =(0*2*1*20)+(1*300*(1-PercDayTrips)) -> 216
A11: Road infrastructure with bicycle and pedestrian facilities | B11: 1.1 | C11: =MaxUserMiles*10*100 -> 0 | D11: =MaxUserMiles*15*150 -> 0 | E11: =MaxUserMiles*20*250 -> 0 | F11: 500 | G11: 3000 | H11: 15000 | I11: =(2*2*1*10)+(0*0*PercDayTrips) -> 40 | J11: =(2*10*1*20)+(0*100*PercDayTrips) -> 400 | K11: =(4*10*1*30)+(1*300*PercDayTrips) -> 1284 | L11: 0 | M11: =(2*4*2*10)+(0*300*(1-PercDayTrips)) -> 160 | N11: =(4*10*2*20)+(1*300*(1-PercDayTrips)) -> 1816
A12: Road infrastructure with pedestrian facilities | B12: 1.09 | C12: 0 | D12: 0 | E12: 0 | F12: 500 | G12: 3000 | H12: 15000 | I12: =(2*2*1*0)+(0*0*PercDayTrips) -> 0 | J12: =(2*2*1*20)+(0*0*PercDayTrips) -> 80 | K12: =(2*2*1*50)+(1*300*PercDayTrips) -> 284 | L12: 0 | M12: =(0*2*1*20)+(0*0*(1-PercDayTrips)) -> 0 | N12: =(0*2*1*20)+(1*300*(1-PercDayTrips)) -> 216
A14: Notes on Defaults
A15: Bicycle infrastructure only, On-street bicycle and pedestrian facilities (no road construction), and Road infrastructure with bicycle and pedestrian facilities are considered the same for Bicycle user-miles and Trips
A16: On-street bicycle and pedestrian facilities (no road construction) and Road infrastructure with bicycle and pedestrian facilities are considered the same for Pedestrian user-miles and trips
A17: Pedestrian infrastructure only and Road infrastructure with pedestrian facilities are considered the same for Pedestrian user-miles and trips
A18: 100 days implies 2 days per week, 150 days implies 3 days per week, 250 days implies commuting 5 days per week
A19: Trip length for pedestrian are hard-coded as 1, 3, and 5 miles based on realistic distances that people walk as opposed to project lengths.
A20: Cyclist are assumed to travel the entire length of the connected network. NOTE: This may not be a realistic assumption if that mileage is more than 25 miles.
A21: Events are assumed to have the same number of participants (within project type and estimate level) in order to calculate a split between day trips and overnight trips

Sheet Counties
B2: Beaver
B3: Box Elder
B4: Cache
B5: Carbon
B6: Daggett
B7: Davis
B8: Duchesne
B9: Emery
B10: Garfield
B11: Grand
B12: Iron
B13: Juab
B14: Kane
B15: Millard
B16: Morgan
B17: Piute
B18: Rich
B19: Salt Lake
B20: San Juan
B21: Sanpete
B22: Sevier
B23: Summit
B24: Tooele
B25: Uintah
B26: Utah
B27: Wasatch
B28: Washington
B29: Wayne
B30: Weber

Sheet CapConstr
A1: Source: | B1: Economic Impacts of Active Transportation: Utah Active Transportation Benefits Study. See UATBS_Final_Report_20170428.pdf
A2: Table 25
A4: Total Multipliers per $ of Capital Construction Spending
A6: County | B6: $ Total Output | C6: # of Jobs Per $Million | D6: $ Income
A7: Beaver | B7: 1.211640737 | C7: 8.117033514 | D7: 0.3066412754
A8: Box Elder | B8: 1.295296646 | C8: 8.749039699 | D8: 0.3401401172
A9: Cache | B9: 1.451926047 | C9: 10.33135215 | D9: 0.367314279
A10: Carbon | B10: 1.395324432 | C10: 8.614751832 | D10: 0.4183685212
A11: Daggett | B11: 1.200769133 | C11: 5.497604777 | D11: 0.5529587621
A12: Davis | B12: 1.457972588 | C12: 8.860805911 | D12: 0.4458871855
A13: Duchesne | B13: 1.435960619 | C13: 8.836825537 | D13: 0.4119708859
A14: Emery | B14: 1.213284603 | C14: 7.550571502 | D14: 0.3255205954
A15: Garfield | B15: 1.317110305 | C15: 10.25017646 | D15: 0.2319668238
A16: Grand | B16: 1.363486687 | C16: 9.464621926 | D16: 0.3632463245
A17: Iron | B17: 1.385275415 | C17: 10.4953237 | D17: 0.3187724223
A18: Juab | B18: 1.218824241 | C18: 8.209035554 | D18: 0.3129329795
A19: Kane | B19: 1.257331458 | C19: 10.38889545 | D19: 0.1781959848
A20: Millard | B20: 1.325799705 | C20: 9.817313544 | D20: 0.302135891
A21: Morgan | B21: 1.333012919 | C21: 8.514082948 | D21: 0.4094553438
A22: Piute | B22: 1.12511719 | C22: 9.867211418 | D22: 0.1156804008
A23: Rich | B23: 1.295208626 | C23: 9.441210271 | D23: 0.2980114048
A24: Salt lake | B24: 1.783553748 | C24: 10.13771148 | D24: 0.5740709131
A25: San Juan | B25: 1.255475631 | C25: 8.441370897 | D25: 0.3029865784
A26: Sanpete | B26: 1.342520594 | C26: 10.13600508 | D26: 0.2931624799
A27: Sevier | B27: 1.496103806 | C27: 10.68013225 | D27: 0.3291157555
A28: Summit | B28: 1.406774584 | C28: 8.34703895 | D28: 0.4576438307
A29: Tooele | B29: 1.272347389 | C29: 8.307167099 | D29: 0.3334645101
A30: Uintah | B30: 1.452500683 | C30: 8.965339857 | D30: 0.4147538412
A31: Utah | B31: 1.489938771 | C31: 9.586000388 | D31: 0.4495324661
A32: Wasatch | B32: 1.307795937 | C32: 8.358009671 | D32: 0.3703098277
A33: Washington | B33: 1.620156518 | C33: 11.3579252 | D33: 0.4109902151
A34: Wayne | B34: 1.192135895 | C34: 8.723029024 | D34: 0.2583121098
A35: Weber | B35: 1.406297031 | C35: 9.269735602 | D35: 0.414104183

Sheet FacMaint
A1: Source: | B1: Economic Impacts of Active Transportation: Utah Active Transportation Benefits Study. See UATBS_Final_Report_20170428.pdf
A2: Table 26
A4: Total Multipliers per $ of Annual Facility Maintenance Spending
A6: County | B6: $ Total Output | C6: # of Jobs Per $Million | D6: $ Income
A7: Beaver | B7: 1.228499873 | C7: 10.24437924 | D7: 0.3507534346
A8: Box Elder | B8: 1.311823124 | C8: 11.1933338 | D8: 0.3738916802
A9: Cache | B9: 1.481786418 | C9: 13.22620387 | D9: 0.4230457452
A10: Carbon | B10: 1.403857004 | C10: 10.60554897 | D10: 0.4496566795
A11: Daggett | B11: 1.175731654 | C11: 5.739412037 | D11: 0.6157918792
A12: Davis | B12: 1.581452216 | C12: 11.36066242 | D12: 0.5297937906
A13: Duchesne | B13: 1.411458275 | C13: 10.64500783 | D13: 0.4548796065
A14: Emery | B14: 1.253588576 | C14: 9.644174432 | D14: 0.3600497596
A15: Garfield | B15: 1.290944969 | C15: 12.99069854 | D15: 0.2542513661
A16: Grand | B16: 1.416753616 | C16: 12.14931456 | D16: 0.4180255036
A17: Iron | B17: 1.434874465 | C17: 13.55718576 | D17: 0.3657880238
A18: Juab | B18: 1.318162439 | C18: 11.0295789 | D18: 0.3712848866
A19: Kane | B19: 1.315103454 | C19: 14.18824709 | D19: 0.2013417018
A20: Millard | B20: 1.441460685 | C20: 13.53066217 | D20: 0.3700923048
A21: Morgan | B21: 1.351595073 | C21: 10.35889316 | D21: 0.4688140177
A22: Piute | B22: 1.093411006 | C22: 12.51047308 | D22: 0.1182889532
A23: Rich | B23: 1.365669786 | C23: 12.89241339 | D23: 0.3527831727
A24: Salt lake | B24: 1.854651661 | C24: 12.4444908 | D24: 0.6439819706
A25: San Juan | B25: 1.267496968 | C25: 10.55612588 | D25: 0.3375123136
A26: Sanpete | B26: 1.41638363 | C26: 13.74193079 | D26: 0.3385248417
A27: Sevier | B27: 1.549120533 | C27: 13.99835402 | D27: 0.3907443426
A28: Summit | B28: 1.426626425 | C28: 10.41685509 | D28: 0.5204951122
A29: Tooele | B29: 1.38156096 | C29: 11.29771518 | D29: 0.4016587133
A30: Uintah | B30: 1.453814796 | C30: 11.08258721 | D30: 0.456163595
A31: Utah | B31: 1.551472333 | C31: 12.12120979 | D31: 0.5099534429
A32: Wasatch | B32: 1.362011814 | C32: 10.651452 | D32: 0.4164223101
A33: Washington | B33: 1.58934063 | C33: 13.81316792 | D33: 0.4539502174
A34: Wayne | B34: 1.287791044 | C34: 12.16878957 | D34: 0.2876226812
A35: Weber | B35: 1.50825207 | C35: 12.10591305 | D35: 0.4923596363

Sheet EquipServ
A1: Source: | B1: Economic Impacts of Active Transportation: Utah Active Transportation Benefits Study. See UATBS_Final_Report_20170428.pdf
A2: Table 27
A4: Note that Multipliers are only provided for Counties in which there was sales data from InfoUSA
A5: Total Multipliers per $ of Equipment and Service Spending
A7: County | B7: $ Total Output | C7: # of Jobs Per $Million | D7: $ Income
A8: Beaver | B8: 0 | C8: 0 | D8: 0
A9: Box Elder | B9: 1.54856195 | C9: 13.49477716 | D9: 0.274005682
A10: Cache | B10: 1.806677731 | C10: 14.08592803 | D10: 0.3336368146
A11: Carbon | B11: 1.757597696 | C11: 13.22183658 | D11: 0.3308560552
A12: Daggett | B12: 0 | C12: 0 | D12: 0
A13: Davis | B13: 1.919064844 | C13: 14.3673287 | D13: 0.3949724065
A14: Duchesne | B14: 0 | C14: 0 | D14: 0
A15: Emery | B15: 0 | C15: 0 | D15: 0
A16: Garfield | B16: 0 | C16: 0 | D16: 0
A17: Grand | B17: 1.758944369 | C17: 12.64962736 | D17: 0.306850292
A18: Iron | B18: 1.920527378 | C18: 17.25356199 | D18: 0.3101393339
A19: Juab | B19: 0 | C19: 0 | D19: 0
A20: Kane | B20: 0 | C20: 0 | D20: 0
A21: Millard | B21: 0 | C21: 0 | D21: 0
A22: Morgan | B22: 1.779546779 | C22: 19.31342148 | D22: 0.2021439553
A23: Piute | B23: 0 | C23: 0 | D23: 0
A24: Rich | B24: 2.207471758 | C24: 12.91644229 | D24: 0.5575794707
A25: Salt Lake | B25: 0 | C25: 0 | D25: 0
A26: San Juan | B26: 0 | C26: 0 | D26: 0
A27: Sanpete | B27: 0 | C27: 0 | D27: 0
A28: Sevier | B28: 0 | C28: 0 | D28: 0
A29: Summit | B29: 1.786677656 | C29: 10.43798292 | D29: 0.3892733275
A30: Tooele | B30: 0 | C30: 0 | D30: 0
A31: Uintah | B31: 1.67190403 | C31: 12.1868347 | D31: 0.3000337255
A32: Utah | B32: 2.065845293 | C32: 14.98466332 | D32: 0.425171236
A33: Wasatch | B33: 1.872595221 | C33: 14.30322751 | D33: 0.320369555
A34: Washington | B34: 2.11233942 | C34: 16.96683551 | D34: 0.4001089135
A35: Wayne | B35: 0 | C35: 0 | D35: 0
A36: Weber | B36: 1.841714127 | C36: 14.40257453 | D36: 0.369428507

Sheet DayTrips
A1: Source: | B1: Economic Impacts of Active Transportation: Utah Active Transportation Benefits Study. See UATBS_Final_Report_20170428.pdf
A2: Table 28
A4: Total Multipliers per $ of Direct Spending - Day Trips
A6: County | B6: $ Total Output | C6: # of Jobs Per $Million | D6: $ Income
A7: Beaver | B7: 0.6650790995 | C7: 11.78341591 | D7: 0.2740143734
A8: Box Elder | B8: 0.7338002445 | C8: 12.01532125 | D8: 0.3230857405
A9: Cache | B9: 1.686079345 | C9: 19.65110074 | D9: 0.5107498407
A10: Carbon | B10: 0.8257460686 | C10: 10.83215386 | D10: 0.38766819
A11: Daggett | B11: 0.6546002294 | C11: 14.03554712 | D11: 0.2337490132
A12: Davis | B12: 1.596758033 | C12: 17.97825028 | D12: 0.5629441273
A13: Duchesne | B13: 1.381916378 | C13: 18.49559724 | D13: 0.3922339494
A14: Emery | B14: 0.7124034541 | C14: 12.05032798 | D14: 0.2870627211
A15: Garfield | B15: 0.7507308416 | C15: 14.04577228 | D15: 0.2542517452
A16: Grand | B16: 1.58056406 | C16: 19.11268373 | D16: 0.4587246275
A17: Iron | B17: 1.602920278 | C17: 20.15856654 | D17: 0.469620311
A18: Juab | B18: 0.7028961708 | C18: 13.96883314 | D18: 0.2357854805
A19: Kane | B19: 1.443435423 | C19: 17.98204913 | D19: 0.412272513
A20: Millard | B20: 0.7314409216 | C20: 12.59844099 | D20: 0.2948284148
A21: Morgan | B21: 1.411110054 | C21: 19.87811671 | D21: 0.3448212946
A22: Piute | B22: 0.6299386152 | C22: 12.87923755 | D22: 0.2332084048
A23: Rich | B23: 0.7446683311 | C23: 13.58891779 | D23: 0.2626040685
A24: Salt lake | B24: 2.056396751 | C24: 19.08582038 | D24: 0.7493880037
A25: San Juan | B25: 1.332112773 | C25: 18.13113141 | D25: 0.3609880589
A26: Sanpete | B26: 0.7528783844 | C26: 13.09868387 | D26: 0.2957377128
A27: Sevier | B27: 0.770719191 | C27: 12.78085476 | D27: 0.3205679438
A28: Summit | B28: 1.618206209 | C28: 15.89668069 | D28: 0.6052940902
A29: Tooele | B29: 1.381244424 | C29: 15.88902596 | D29: 0.5090975282
A30: Uintah | B30: 1.45248837 | C30: 17.52063312 | D30: 0.4659342267
A31: Utah | B31: 1.836666356 | C31: 19.34587039 | D31: 0.6182772874
A32: Wasatch | B32: 1.608675145 | C32: 20.05239777 | D32: 0.4373929821
A33: Washington | B33: 1.808442612 | C33: 21.31340026 | D33: 0.5349962454
A34: Wayne | B34: 0.6587924293 | C34: 13.28796598 | D34: 0.2355820111
A35: Weber | B35: 1.59605115 | C35: 18.75663483 | D35: 0.5470696431

Sheet Overnights
A1: Source: | B1: Economic Impacts of Active Transportation: Utah Active Transportation Benefits Study. See UATBS_Final_Report_20170428.pdf
A2: Table 29
A4: Total Multipliers per $ of Direct Spending - Overnight Trips
A6: County | B6: $ Total Output | C6: # of Jobs Per $Million | D6: $ Income
A7: Beaver | B7: 1.085450463 | C7: 19.21533973 | D7: 0.4241156351
A8: Box Elder | B8: 1.187742497 | C8: 20.07750383 | D8: 0.4877361819
A9: Cache | B9: 1.611997044 | C9: 22.97677374 | D9: 0.5916293734
A10: Carbon | B10: 1.162726568 | C10: 15.26011179 | D10: 0.5013374842
A11: Daggett | B11: 1.067376514 | C11: 22.09685374 | D11: 0.3787768587
A12: Davis | B12: 1.587834181 | C12: 23.59142682 | D12: 0.5801587797
A13: Duchesne | B13: 1.388583396 | C13: 22.32653961 | D13: 0.4932837725
A14: Emery | B14: 1.169658398 | C14: 19.14661055 | D14: 0.4577647804
A15: Garfield | B15: 1.222830799 | C15: 21.86282117 | D15: 0.4197881203
A16: Grand | B16: 1.551927224 | C16: 21.79815704 | D16: 0.5753142005
A17: Iron | B17: 1.589594803 | C17: 24.64211836 | D17: 0.5370155344
A18: Juab | B18: 1.152208626 | C18: 22.39990502 | D18: 0.375835566
A19: Kane | B19: 1.42853116 | C19: 20.88662903 | D19: 0.5319962729
A20: Millard | B20: 1.200129283 | C20: 20.25756097 | D20: 0.4628109408
A21: Morgan | B21: 1.218257691 | C21: 20.04777919 | D21: 0.3886986435
A22: Piute | B22: 1.027383989 | C22: 20.28325123 | D22: 0.3734221359
A23: Rich | B23: 1.196401754 | C23: 21.87039656 | D23: 0.4102098376
A24: Salt lake | B24: 1.954972648 | C24: 22.39985336 | D24: 0.7926620837
A25: San Juan | B25: 1.308105814 | C25: 22.77749375 | D25: 0.4325240993
A26: Sanpete | B26: 1.231218126 | C26: 21.0465616 | D26: 0.4650098208
A27: Sevier | B27: 1.258142958 | C27: 20.70831928 | D27: 0.5002614901
A28: Summit | B28: 1.533089646 | C28: 18.45257135 | D28: 0.6684138012
A29: Tooele | B29: 1.220530352 | C29: 17.63170038 | D29: 0.4709309192
A30: Uintah | B30: 1.48025863 | C30: 22.16206339 | D30: 0.5383181597
A31: Utah | B31: 1.738401729 | C31: 21.84391777 | D31: 0.6859958754
A32: Wasatch | B32: 1.546884982 | C32: 22.7315833 | D32: 0.5365684312
A33: Washington | B33: 1.761604396 | C33: 24.85647523 | D33: 0.615754907
A34: Wayne | B34: 1.086052991 | C34: 20.80818778 | D34: 0.3882447622
A35: Weber | B35: 1.585132091 | C35: 23.07807558 | D35: 0.6034634824

Sheet CountyHealth
A1: Source: | B1: Economic Impacts of Active Transportation: Utah Active Transportation Benefits Study. See UATBS_Final_Report_20170428.pdf
A2: * Table 14
B4: Utah Health District | C4: County | D4: % of 18+ yo adults getting Recommended Aerobic Activity* | E4: % Insufficiently active
B5: Southeast | C5: Beaver | D5: 0.693 | E5: =1-D5 -> 0.307
B6: Bear River | C6: Box Elder | D6: 0.548 | E6: =1-D6 -> 0.452
B7: Bear River | C7: Cache | D7: 0.548 | E7: 0.452
B8: Use State | C8: Carbon | D8: 0.556 | E8: 0.444
B9: TriCounty | C9: Daggett | D9: 0.515 | E9: 0.485
B10: Davis County | C10: Davis | D10: 0.576 | E10: 0.424
B11: TriCounty | C11: Duchesne | D11: 0.515 | E11: 0.485
B12: Use State | C12: Emery | D12: 0.556 | E12: 0.444
B13: Southeast | C13: Garfield | D13: 0.693 | E13: 0.307
B14: Use State | C14: Grand | D14: 0.556 | E14: 0.444
B15: Southeast | C15: Iron | D15: 0.693 | E15: 0.307
B16: Use State | C16: Juab | D16: 0.556 | E16: 0.444
B17: Southeast | C17: Kane | D17: 0.693 | E17: 0.307
B18: Central | C18: Millard | D18: 0.494 | E18: 0.506
B19: Weber-Morgan | C19: Morgan | D19: 0.536 | E19: 0.464
B20: Central | C20: Piute | D20: 0.494 | E20: 0.506
B21: Bear Rive | C21: Rich | D21: 0.548 | E21: 0.452
B22: Salt Lake County | C22: Salt lake | D22: 0.553 | E22: 0.447
B23: San Juan | C23: San Juan | D23: 0.684 | E23: 0.316
B24: Central | C24: Sanpete | D24: 0.494 | E24: 0.506
B25: Central | C25: Sevier | D25: 0.494 | E25: 0.506
B26: Summit | C26: Summit | D26: 0.699 | E26: 0.301
B27: Tooele | C27: Tooele | D27: 0.46 | E27: 0.54
B28: TriCounty | C28: Uintah | D28: 0.515 | E28: 0.485
B29: Utah County | C29: Utah | D29: 0.582 | E29: 0.418
B30: Wasatch County | C30: Wasatch | D30: 0.562 | E30: 0.438
B31: Southeast | C31: Washington | D31: 0.693 | E31: 0.307
B32: Central | C32: Wayne | D32: 0.494 | E32: 0.506
B33: Weber-Morgan | C33: Weber | D33: 0.536 | E33: 0.464

Sheet HealthCycl
A1: Source: | B1: Economic Impacts of Active Transportation: Utah Active Transportation Benefits Study. See UATBS_Final_Report_20170428.pdf
A2: Table 30
A4: Total Multipliers per $ reduction in Healthcare Spending - Cyclists
E5: * Table 14 in Final Report
A6: County | B6: $ Total Output | C6: # of Jobs Per $Million | D6: $ Income | E6: Annual Expenditures ($2016) avoided per Rider-Mile
A7: Beaver | B7: 0.8297651679 | C7: 2.210545929 | D7: 0.5800598246 | E7: 0.734
A8: Box Elder | B8: 0.9074768427 | C8: 2.155189117 | D8: 0.5860541328 | E8: 0.748
A9: Cache | B9: 1.035427832 | C9: 2.571535147 | D9: 0.6260564296 | E9: 0.748
A10: Carbon | B10: 0.9626994335 | C10: 2.017975367 | D10: 0.6085094066 | E10: 0.749
A11: Daggett | B11: 0.8389239346 | C11: 2.948322573 | D11: 0.5963404553 | E11: 0.738
A12: Davis | B12: 0.9991127859 | C12: 2.599328309 | D12: 0.6358724717 | E12: 0.749
A13: Duchesne | B13: 0.9237599385 | C13: 2.756911813 | D13: 0.6233593545 | E13: 0.738
A14: Emery | B14: 0.8738446851 | C14: 1.555815517 | D14: 0.5559042888 | E14: 0.749
A15: Garfield | B15: 0.9283073495 | C15: 3.212883791 | D15: 0.5892739942 | E15: 0.734
A16: Grand | B16: 0.990553148 | C16: 3.144755499 | D16: 0.6309782659 | E16: 0.749
A17: Iron | B17: 1.030377776 | C17: 3.210883026 | D17: 0.6289155824 | E17: 0.734
A18: Juab | B18: 0.8817467606 | C18: 2.235043798 | D18: 0.576690841 | E18: 0.747
A19: Kane | B19: 0.9235149462 | C19: 2.908090939 | D19: 0.5972946909 | E19: 0.734
A20: Millard | B20: 0.881406177 | C20: 1.634720297 | D20: 0.5670940167 | E20: 0.747
A21: Morgan | B21: 0.8928274607 | C21: 2.864164441 | D21: 0.5777343126 | E21: 0.747
A22: Piute | B22: 0.8351435127 | C22: 3.508295768 | D22: 0.5471208071 | E22: 0.747
A23: Rich | B23: 0.9143395593 | C23: 2.986986797 | D23: 0.5808500396 | E23: 0.748
A24: Salt lake | B24: 1.204730365 | C24: 2.822250222 | D24: 0.7266750831 | E24: 0.751
A25: San Juan | B25: 0.8800723428 | C25: 2.740143109 | D25: 0.5891086033 | E25: 0.749
A26: Sanpete | B26: 0.9459229948 | C26: 3.080834899 | D26: 0.6036228589 | E26: 0.747
A27: Sevier | B27: 0.9624804957 | C27: 2.63243003 | D27: 0.6103825303 | E27: 0.747
A28: Summit | B28: 0.9819642686 | C28: 2.702193807 | D28: 0.6417014043 | E28: 0.734
A29: Tooele | B29: 0.8841182909 | C29: 2.04709189 | D29: 0.5799401017 | E29: 0.747
A30: Uintah | B30: 0.9752596388 | C30: 2.604126176 | D30: 0.6302895485 | E30: 0.738
A31: Utah | B31: 1.101598257 | C31: 2.953197862 | D31: 0.6754145301 | E31: 0.753
A32: Wasatch | B32: 0.9660812837 | C32: 3.070284868 | D32: 0.6097875936 | E32: 0.748
A33: Washington | B33: 1.117690614 | C33: 3.550955982 | D33: 0.661458785 | E33: 0.734
A34: Wayne | B34: 0.8615857916 | C34: 3.102446051 | D34: 0.5653922349 | E34: 0.747
A35: Weber | B35: 1.029249848 | C35: 2.578025411 | D35: 0.6507038941 | E35: 0.747

Sheet HealthPed
A1: Source: | B1: Economic Impacts of Active Transportation: Utah Active Transportation Benefits Study. See UATBS_Final_Report_20170428.pdf
A2: Table 31
A4: Total Multipliers per $ reduction in Healthcare Spending - Pedestrians
E5: * Table 14 in Final Report
A6: County | B6: $ Total Output | C6: # of Jobs Per $Million | D6: $ Income | E6: Annual Expenditures ($2016) avoided per Person-Mile*
A7: Beaver | B7: 0.8297651679 | C7: 2.210545929 | D7: 0.5800598246 | E7: 3.04
A8: Box Elder | B8: 0.9074768427 | C8: 2.155189117 | D8: 0.5860541328 | E8: 2.99
A9: Cache | B9: 1.035427832 | C9: 2.571535147 | D9: 0.6260564296 | E9: 2.99
A10: Carbon | B10: 0.9626994335 | C10: 2.017975367 | D10: 0.6085094066 | E10: 3.07
A11: Daggett | B11: 0.8389239346 | C11: 2.948322573 | D11: 0.5963404553 | E11: 3.05
A12: Davis | B12: 0.9991127859 | C12: 2.599328309 | D12: 0.6358724717 | E12: 3
A13: Duchesne | B13: 0.9237599385 | C13: 2.756911813 | D13: 0.6233593545 | E13: 3.05
A14: Emery | B14: 0.8738446851 | C14: 1.555815517 | D14: 0.5559042888 | E14: 3.07
A15: Garfield | B15: 0.9283073495 | C15: 3.212883791 | D15: 0.5892739942 | E15: 3.04
A16: Grand | B16: 0.990553148 | C16: 3.144755499 | D16: 0.6309782659 | E16: 3.07
A17: Iron | B17: 1.030377776 | C17: 3.210883026 | D17: 0.6289155824 | E17: 3.04
A18: Juab | B18: 0.8817467606 | C18: 2.235043798 | D18: 0.576690841 | E18: 2.99
A19: Kane | B19: 0.9235149462 | C19: 2.908090939 | D19: 0.5972946909 | E19: 3.04
A20: Millard | B20: 0.881406177 | C20: 1.634720297 | D20: 0.5670940167 | E20: 2.99
A21: Morgan | B21: 0.8928274607 | C21: 2.864164441 | D21: 0.5777343126 | E21: 3.07
A22: Piute | B22: 0.8351435127 | C22: 3.508295768 | D22: 0.5471208071 | E22: 2.99
A23: Rich | B23: 0.9143395593 | C23: 2.986986797 | D23: 0.5808500396 | E23: 2.99
A24: Salt lake | B24: 1.204730365 | C24: 2.822250222 | D24: 0.7266750831 | E24: 3.01
A25: San Juan | B25: 0.8800723428 | C25: 2.740143109 | D25: 0.5891086033 | E25: 3.07
A26: Sanpete | B26: 0.9459229948 | C26: 3.080834899 | D26: 0.6036228589 | E26: 2.99
A27: Sevier | B27: 0.9624804957 | C27: 2.63243003 | D27: 0.6103825303 | E27: 2.99
A28: Summit | B28: 0.9819642686 | C28: 2.702193807 | D28: 0.6417014043 | E28: 3.04
A29: Tooele | B29: 0.8841182909 | C29: 2.04709189 | D29: 0.5799401017 | E29: 3.07
A30: Uintah | B30: 0.9752596388 | C30: 2.604126176 | D30: 0.6302895485 | E30: 3.05
A31: Utah | B31: 1.101598257 | C31: 2.953197862 | D31: 0.6754145301 | E31: 3.08
A32: Wasatch | B32: 0.9660812837 | C32: 3.070284868 | D32: 0.6097875936 | E32: 3.07
A33: Washington | B33: 1.117690614 | C33: 3.550955982 | D33: 0.661458785 | E33: 3.04
A34: Wayne | B34: 0.8615857916 | C34: 3.102446051 | D34: 0.5653922349 | E34: 2.99
A35: Weber | B35: 1.029249848 | C35: 2.578025411 | D35: 0.6507038941 | E35: 3.07

Sheet ProdCycl
A1: Source: | B1: Economic Impacts of Active Transportation: Utah Active Transportation Benefits Study. See UATBS_Final_Report_20170428.pdf
A2: Table 32
A4: Total Multipliers per $ increase in Production Output - Cyclists
A6: County | B6: $ Total Output | C6: # of Jobs Per $Million | D6: $ Income | E6: Annual absentee days not taken per mile ridden | F6: Output per Employee per day ($)
A7: Beaver | B7: 1.210823656 | C7: 8.193072424 | D7: 0.3484348792 | E7: 0.0005903 | F7: 617.4049477
A8: Box Elder | B8: 1.250366394 | C8: 7.9294647 | D8: 0.2744034896 | E8: 0.0005506 | F8: 726.566007
A9: Cache | B9: 1.455012533 | C9: 9.912061273 | D9: 0.3418377602 | E9: 0.0005506 | F9: 659.0644177
A10: Carbon | B10: 1.343325397 | C10: 7.276065603 | D10: 0.3126490793 | E10: 0.0006128 | F10: 829.3651061
A11: Daggett | B11: 1.216361117 | C11: 11.70629468 | D11: 0.4054531204 | E11: 0.0005963 | F11: 396.8300825
A12: Davis | B12: 1.431593742 | C12: 10.04441195 | D12: 0.4178065321 | E12: 0.0005424 | F12: 622.7762521
A13: Duchesne | B13: 1.378153517 | C13: 10.79481202 | D13: 0.4589859738 | E13: 0.0005963 | F13: 519.4985793
A14: Emery | B14: 1.278717548 | C14: 5.075307843 | D14: 0.2131199468 | E14: 0.0006128 | F14: 1075.416014
A15: Garfield | B15: 1.364074998 | C15: 12.96610658 | D15: 0.3296261628 | E15: 0.0005903 | F15: 424.1317245
A16: Grand | B16: 1.439856419 | C16: 12.64168414 | D16: 0.4260036471 | E16: 0.0006128 | F16: 453.0339462
A17: Iron | B17: 1.482540362 | C17: 12.95657498 | D17: 0.3923784875 | E17: 0.0005903 | F17: 480.6695151
A18: Juab | B18: 1.226343622 | C18: 8.309726657 | D18: 0.2779163856 | E18: 0.0005478 | F18: 627.3029701
A19: Kane | B19: 1.306582601 | C19: 11.5147119 | D19: 0.343965671 | E19: 0.0005903 | F19: 463.4971659
A20: Millard | B20: 1.206704652 | C20: 5.451043033 | D20: 0.2168229367 | E20: 0.0005478 | F20: 1075.864501
A21: Morgan | B21: 1.356610289 | C21: 11.30553981 | D21: 0.317782441 | E21: 0.0006102 | F21: 505.4828936
A22: Piute | B22: 1.257053394 | C22: 14.37283356 | D22: 0.2225709861 | E22: 0.0005478 | F22: 333.6804226
A23: Rich | B23: 1.405160283 | C23: 11.89040732 | D23: 0.3237692362 | E23: 0.0005506 | F23: 478.4778666
A24: Salt lake | B24: 1.793987927 | C24: 11.10594215 | D24: 0.6012227768 | E24: 0.0005597 | F24: 674.5764145
A25: San Juan | B25: 1.260327347 | C25: 10.71496147 | D25: 0.3362428731 | E25: 0.0006128 | F25: 500.1769249
A26: Sanpete | B26: 1.397670451 | C26: 12.33730133 | D26: 0.3680998041 | E26: 0.0005478 | F26: 468.9140708
A27: Sevier | B27: 1.365997123 | C27: 10.20203848 | D27: 0.3436358584 | E27: 0.0005478 | F27: 571.290391
A28: Summit | B28: 1.460249851 | C28: 10.53424951 | D28: 0.4583804966 | E28: 0.0005906 | F28: 549.5692691
A29: Tooele | B29: 1.235895195 | C29: 7.41471757 | D29: 0.2779319127 | E29: 0.0006099 | F29: 755.5959318
A30: Uintah | B30: 1.431703042 | C30: 10.06726036 | D30: 0.4412440405 | E30: 0.0005963 | F30: 596.4786728
A31: Utah | B31: 1.624911223 | C31: 11.7295032 | D31: 0.495319191 | E31: 0.0006198 | F31: 583.8953633
A32: Wasatch | B32: 1.42915516 | C32: 12.28706351 | D32: 0.3693499695 | E32: 0.000611 | F32: 469.22122
A33: Washington | B33: 1.655224354 | C33: 14.57596858 | D33: 0.4506146903 | E33: 0.0005903 | F33: 464.0477722
A34: Wayne | B34: 1.259717579 | C34: 12.44021344 | D34: 0.2740649283 | E34: 0.0005478 | F34: 406.4557587
A35: Weber | B35: 1.437099275 | C35: 9.942968291 | D35: 0.4169937814 | E35: 0.0006102 | F35: 636.580914

Sheet ProdPed
A1: Source: | B1: Economic Impacts of Active Transportation: Utah Active Transportation Benefits Study. See UATBS_Final_Report_20170428.pdf
A2: Table 33
A4: Total Multipliers per $ increase in Production Output - Pedestrians
A6: County | B6: $ Total Output | C6: # of Jobs Per $Million | D6: $ Income | E6: Annual absentee days not taken per mile walked | F6: Output per Employee per day ($)
A7: Beaver | B7: 1.210823656 | C7: 8.193072424 | D7: 0.3484348792 | E7: 0.002361 | F7: 617.4049477
A8: Box Elder | B8: 1.250366394 | C8: 7.9294647 | D8: 0.2744034896 | E8: 0.0022026 | F8: 726.566007
A9: Cache | B9: 1.455012533 | C9: 9.912061273 | D9: 0.3418377602 | E9: 0.0022026 | F9: 659.0644177
A10: Carbon | B10: 1.343325397 | C10: 7.276065603 | D10: 0.3126490793 | E10: 0.002451 | F10: 829.3651061
A11: Daggett | B11: 1.216361117 | C11: 11.70629468 | D11: 0.4054531204 | E11: 0.002385 | F11: 396.8300825
A12: Davis | B12: 1.431593742 | C12: 10.04441195 | D12: 0.4178065321 | E12: 0.0022094 | F12: 622.7762521
A13: Duchesne | B13: 1.378153517 | C13: 10.79481202 | D13: 0.4589859738 | E13: 0.002385 | F13: 519.4985793
A14: Emery | B14: 1.278717548 | C14: 5.075307843 | D14: 0.2131199468 | E14: 0.002451 | F14: 1075.416014
A15: Garfield | B15: 1.364074998 | C15: 12.96610658 | D15: 0.3296261628 | E15: 0.002361 | F15: 424.1317245
A16: Grand | B16: 1.439856419 | C16: 12.64168414 | D16: 0.4260036471 | E16: 0.002451 | F16: 453.0339462
A17: Iron | B17: 1.482540362 | C17: 12.95657498 | D17: 0.3923784875 | E17: 0.002361 | F17: 480.6695151
A18: Juab | B18: 1.226343622 | C18: 8.309726657 | D18: 0.2779163856 | E18: 0.0021914 | F18: 627.3029701
A19: Kane | B19: 1.306582601 | C19: 11.5147119 | D19: 0.343965671 | E19: 0.002361 | F19: 463.4971659
A20: Millard | B20: 1.206704652 | C20: 5.451043033 | D20: 0.2168229367 | E20: 0.0021914 | F20: 1075.864501
A21: Morgan | B21: 1.356610289 | C21: 11.30553981 | D21: 0.317782441 | E21: 0.002441 | F21: 505.4828936
A22: Piute | B22: 1.257053394 | C22: 14.37283356 | D22: 0.2225709861 | E22: 0.0021914 | F22: 333.6804226
A23: Rich | B23: 1.405160283 | C23: 11.89040732 | D23: 0.3237692362 | E23: 0.0022026 | F23: 478.4778666
A24: Salt lake | B24: 1.793987927 | C24: 11.10594215 | D24: 0.6012227768 | E24: 0.002239 | F24: 674.5764145
A25: San Juan | B25: 1.260327347 | C25: 10.71496147 | D25: 0.3362428731 | E25: 0.002451 | F25: 500.1769249
A26: Sanpete | B26: 1.397670451 | C26: 12.33730133 | D26: 0.3680998041 | E26: 0.0021914 | F26: 468.9140708
A27: Sevier | B27: 1.365997123 | C27: 10.20203848 | D27: 0.3436358584 | E27: 0.0021914 | F27: 571.290391
A28: Summit | B28: 1.460249851 | C28: 10.53424951 | D28: 0.4583804966 | E28: 0.002362 | F28: 549.5692691
A29: Tooele | B29: 1.235895195 | C29: 7.41471757 | D29: 0.2779319127 | E29: 0.00244 | F29: 755.5959318
A30: Uintah | B30: 1.431703042 | C30: 10.06726036 | D30: 0.4412440405 | E30: 0.002385 | F30: 596.4786728
A31: Utah | B31: 1.624911223 | C31: 11.7295032 | D31: 0.495319191 | E31: 0.002479 | F31: 583.8953633
A32: Wasatch | B32: 1.42915516 | C32: 12.28706351 | D32: 0.3693499695 | E32: 0.002444 | F32: 469.22122
A33: Washington | B33: 1.655224354 | C33: 14.57596858 | D33: 0.4506146903 | E33: 0.002361 | F33: 464.0477722
A34: Wayne | B34: 1.259717579 | C34: 12.44021344 | D34: 0.2740649283 | E34: 0.0021914 | F34: 406.4557587
A35: Weber | B35: 1.437099275 | C35: 9.942968291 | D35: 0.4169937814 | E35: 0.002441 | F35: 636.580914

Sheet Raw
A1: Source: | B1: Economic Impacts of Active Transportation: Utah Active Transportation Benefits Study. See UATBS_Final_Report_20170428.pdf
Q2: Note that Multipliers are only provided for Counties in which there was sales data from InfoUSA
B4: Total Multipliers per $ of Capital Construction Spending | E4: Sample Analysis Assumptions: $0.75 Million per mile in Construction Costs; 10% Multiplier Adjustment | J4: Total Multipliers per $ of Annual Facility Maintenance Spending | M4: Sample Analysis Assumptions: $6,300 per mile in Maint. Costs; 10% Multiplier Adjustment | R4: Total Multipliers per $ of Equipment and Service Spending | U4: Sample Analysis Assumptions: $0.85 in Spending per Mile, and 1 Thousand Miles | Z4: Total Multipliers per $ of Direct Spending - Day Trips | AC4: Sample Analysis Assumptions: $35 in Spending per Day trip, and 1,000 Day Trips | AH4: Total Multipliers per $ of Direct Spending - Overnight Trips | AK4: Sample Analysis Assumptions: $182 in Spending per Overnight Trip, and 1,000 Overnight Trips | AP4: Total Multipliers per $ reduction in Healthcare Spending - Cyclists | AS4: Sample Analysis Assumptions: Cyclist - Healthcare Cost Savings per Mile, and 1 Thous. Miles | AX4: Total Multipliers per $ reduction in Healthcare Spending - Pedestrians | BA4: Sample Analysis Assumptions: Pedestrian Healthcare Cost Savings per Mile, and 1 Thous. Miles | BF4: Total Multipliers per $ increase in Production Output - Cyclists | BI4: Sample Analysis Assumptions: Cyclist - Reduction in Sick Days per Mile, and 1 Thous. Miles | BL4: Output per Employee per day | BO4: Total Multipliers per $ increase in Production Output - Pedestrians | BR4: Sample Analysis Assumptions: Pedestrian - Reduction in Sick Days per Mile, and 1 Thous. Miles | BU4: Output per Employee per day
A5: County | B5: $ Total Output | C5: # of Jobs Per $Million | D5: $ Income | E5: $Total Output ($Thous.) per Mile | F5: # of Jobs per Mile | G5: $Income ($Thous.) per Mile | I5: County | J5: $ Total Output | K5: # of Jobs Per $Million | L5: $ Income | M5: $Total Output ($Thous.) per Mile | N5: # of Jobs per Mile | O5: $Income ($Thous.) per Mile | Q5: County | R5: $ Total Output | S5: # of Jobs Per $Million | T5: $ Income | U5: $Total Output ($Thous.) per Thous. Rider-Miles | V5: # of Jobs per Thous. Rider-Miles | W5: $Income ($Thous.) per Thous. Rider-Miles | Y5: County | Z5: $ Total Output | AA5: # of Jobs Per $Million | AB5: $ Income | AC5: $ Total Output ($Thous.) per Thousand Day trips | AD5: # of Jobs per Thousand Day trips | AE5: $ Income ($Thous.) per Thousand Day trips | AG5: County | AH5: $ Total Output | AI5: # of Jobs Per $Million | AJ5: $ Income | AK5: $ Total Output ($Thous.) per Thousand Overnight trips | AL5: # of Jobs per Thousand Overnight trips | AM5: $ Income ($Thous.) per Thousand Overnight trips | AO5: County | AP5: $ Total Output | AQ5: # of Jobs Per $Million | AR5: $ Income | AS5: $Total Output ($Thous.) per Thousand User-Miles | AT5: # of Jobs per Thousand User-Miles | AU5: $Income ($Thous.) per Thousand User-Miles | AW5: County | AX5: $ Total Output | AY5: # of Jobs Per $Million | AZ5: $ Income | BA5: $Total Output ($Thous.) per Thousand User-Miles | BB5: # of Jobs per Thousand User-Miles | BC5: $Income ($Thous.) per Thousand User-Miles | BE5: County | BF5: $ Total Output | BG5: # of Jobs Per $Million | BH5: $ Income | BI5: $Total Output ($Thous.) per Thousand User-Miles | BJ5: # of Jobs per Thousand User-Miles | BK5: $Income ($Thous.) per Thousand User-Miles | BN5: County | BO5: $ Total Output | BP5: # of Jobs Per $Million | BQ5: $ Income | BR5: $Total Output ($Thous.) per Thousand User-Miles | BS5: # of Jobs per Thousand User-Miles | BT5: $Income ($Thous.) per Thousand User-Miles
A6: Beaver | B6: 1.211640737 | C6: 8.117033514 | D6: 0.3066412754 | E6: 908.730553 | F6: 6.700480246 | G6: 253.127427 | I6: Beaver | J6: 1.228499873 | K6: 10.24437924 | L6: 0.3507534346 | M6: 7.739549201 | N6: 0.06453958923 | O6: 2.209746638 | R6: -- | S6: -- | T6: -- | U6: -- | V6: -- | W6: -- | Y6: Beaver | Z6: 0.6650790995 | AA6: 11.78341591 | AB6: 0.2740143734 | AC6: 23.09694854 | AD6: 0.409215913 | AE6: 9.516004768 | AG6: Beaver | AH6: 1.085450463 | AI6: 19.21533973 | AJ6: 0.4241156351 | AK6: 197.3494761 | AL6: 3.493606899 | AM6: 77.10991999 | AO6: Beaver | AP6: 0.8297651679 | AQ6: 2.210545929 | AR6: 0.5800598246 | AS6: 0.6090476332 | AT6: 0.001622540712 | AU6: 0.4257639113 | AW6: Beaver | AX6: 0.8297651679 | AY6: 2.210545929 | AZ6: 0.5800598246 | BA6: 2.52248611 | BB6: 0.006720059624 | BC6: 1.763381867 | BE6: Beaver | BF6: 1.210823656 | BG6: 8.193072424 | BH6: 0.3484348792 | BI6: 0.4412896952 | BJ6: 0.002985999169 | BK6: 0.1269885344 | BL6: 617.4049477 | BN6: Beaver | BO6: 1.210823656 | BP6: 8.193072424 | BQ6: 0.3484348792 | BR6: 1.765009267 | BS6: 0.01194298499 | BT6: 0.5079111127 | BU6: 617.4049477
A7: Box Elder | B7: 1.295296646 | C7: 8.749039699 | D7: 0.3401401172 | E7: 971.4724843 | F7: 7.222191158 | G7: 280.7801806 | I7: Box Elder | J7: 1.311823124 | K7: 11.1933338 | L7: 0.3738916802 | M7: 8.26448568 | N7: 0.07051800295 | O7: 2.355517585 | Q7: Box Elder | R7: 1.54856195 | S7: 13.49477716 | T7: 0.274005682 | U7: 1.310123721 | V7: 0.01141693277 | W7: 0.2318159398 | Y7: Box Elder | Z7: 0.7338002445 | AA7: 12.01532125 | AB7: 0.3230857405 | AC7: 25.48350489 | AD7: 0.4172695501 | AE7: 11.22016122 | AG7: Box Elder | AH7: 1.187742497 | AI7: 20.07750383 | AJ7: 0.4877361819 | AK7: 215.9475419 | AL7: 3.650359916 | AM7: 88.67699006 | AO7: Box Elder | AP7: 0.9074768427 | AQ7: 2.155189117 | AR7: 0.5860541328 | AS7: 0.6787926784 | AT7: 0.001612081459 | AU7: 0.4383684914 | AW7: Box Elder | AX7: 0.9074768427 | AY7: 2.155189117 | AZ7: 0.5860541328 | BA7: 2.71335576 | BB7: 0.00644401546 | BC7: 1.752301857 | BE7: Box Elder | BF7: 1.250366394 | BG7: 7.9294647 | BH7: 0.2744034896 | BI7: 0.4557012096 | BJ7: 0.003172160495 | BK7: 0.1097743596 | BL7: 726.566007 | BN7: Box Elder | BO7: 1.250366394 | BP7: 7.9294647 | BQ7: 0.2744034896 | BR7: 1.822650442 | BS7: 0.01268979424 | BT7: 0.4391373129 | BU7: 726.566007
A8: Cache | B8: 1.451926047 | C8: 10.33135215 | D8: 0.367314279 | E8: 1088.944535 | F8: 8.528364564 | G8: 303.2120129 | I8: Cache | J8: 1.481786418 | K8: 13.22620387 | L8: 0.4230457452 | M8: 9.335254432 | N8: 0.08332508437 | O8: 2.665188195 | Q8: Cache | R8: 1.806677731 | S8: 14.08592803 | T8: 0.3336368146 | U8: 1.528496391 | V8: 0.0119170618 | W8: 0.2822654304 | Y8: Cache | Z8: 1.686079345 | AA8: 19.65110074 | AB8: 0.5107498407 | AC8: 58.5543703 | AD8: 0.6824458368 | AE8: 17.73738311 | AG8: Cache | AH8: 1.611997044 | AI8: 22.97677374 | AJ8: 0.5916293734 | AK8: 293.082718 | AL8: 4.177486133 | AM8: 107.566168 | AO8: Cache | AP8: 1.035427832 | AQ8: 2.571535147 | AR8: 0.6260564296 | AS8: 0.7745000182 | AT8: 0.00192350829 | AU8: 0.4682902094 | AW8: Cache | AX8: 1.035427832 | AY8: 2.571535147 | AZ8: 0.6260564296 | BA8: 3.095929217 | BB8: 0.00768889009 | BC8: 1.871908725 | BE8: Cache | BF8: 1.455012533 | BG8: 9.912061273 | BH8: 0.3418377602 | BI8: 0.5302853422 | BJ8: 0.003596897402 | BK8: 0.1240463833 | BL8: 659.0644177 | BN8: Cache | BO8: 1.455012533 | BP8: 9.912061273 | BQ8: 0.3418377602 | BR8: 2.120961702 | BS8: 0.01438889614 | BT8: 0.4962305916 | BU8: 659.0644177
A9: Carbon | B9: 1.395324432 | C9: 8.614751832 | D9: 0.4183685212 | E9: 1046.493324 | F9: 7.11133869 | G9: 345.3564663 | I9: Carbon | J9: 1.403857004 | K9: 10.60554897 | L9: 0.4496566795 | M9: 8.844299126 | N9: 0.06681495853 | O9: 2.832837081 | Q9: Carbon | R9: 1.757597696 | S9: 13.22183658 | T9: 0.3308560552 | U9: 1.486973404 | V9: 0.01118601793 | W9: 0.2799128355 | Y9: Carbon | Z9: 0.8257460686 | AA9: 10.83215386 | AB9: 0.38766819 | AC9: 28.67661075 | AD9: 0.3761803678 | AE9: 13.46298845 | AG9: Carbon | AH9: 1.162726568 | AI9: 15.26011179 | AJ9: 0.5013374842 | AK9: 211.3993101 | AL9: 2.774493325 | AM9: 91.14988955 | AO9: Carbon | AP9: 0.9626994335 | AQ9: 2.017975367 | AR9: 0.6085094066 | AS9: 0.7200991762 | AT9: 0.001509445574 | AU9: 0.4551650362 | AW9: Carbon | AX9: 0.9626994335 | AY9: 2.017975367 | AZ9: 0.6085094066 | BA9: 2.878471306 | BB9: 0.006033746346 | BC9: 1.819443126 | BE9: Carbon | BF9: 1.343325397 | BG9: 7.276065603 | BH9: 0.3126490793 | BI9: 0.4895805033 | BJ9: 0.003322603915 | BK9: 0.1427707104 | BL9: 829.3651061 | BN9: Carbon | BO9: 1.343325397 | BP9: 7.276065603 | BQ9: 0.3126490793 | BR9: 1.958156138 | BS9: 0.01329162256 | BT9: 0.5711347016 | BU9: 829.3651061
A10: Daggett | B10: 1.200769133 | C10: 5.497604777 | D10: 0.5529587621 | E10: 900.5768497 | F10: 4.538184072 | G10: 456.4585394 | I10: Daggett | J10: 1.175731654 | K10: 5.739412037 | L10: 0.6157918792 | M10: 7.407109421 | N10: 0.03615829583 | O10: 3.879488839 | R10: -- | S10: -- | T10: -- | U10: -- | V10: -- | W10: -- | Y10: Daggett | Z10: 0.6546002294 | AA10: 14.03554712 | AB10: 0.2337490132 | AC10: 22.73303705 | AD10: 0.487428202 | AE10: 8.117664401 | AG10: Daggett | AH10: 1.067376514 | AI10: 22.09685374 | AJ10: 0.3787768587 | AK10: 194.0633892 | AL10: 4.017504857 | AM10: 68.86672136 | AO10: Daggett | AP10: 0.8389239346 | AQ10: 2.948322573 | AR10: 0.5963404553 | AS10: 0.6191258637 | AT10: 0.002175862059 | AU10: 0.440099256 | AW10: Daggett | AX10: 0.8389239346 | AY10: 2.948322573 | AZ10: 0.5963404553 | BA10: 2.558718001 | BB10: 0.008992383848 | BC10: 1.818838389 | BE10: Daggett | BF10: 1.216361117 | BG10: 11.70629468 | BH10: 0.4054531204 | BI10: 0.4433078457 | BJ10: 0.002770057914 | BK10: 0.09594228195 | BL10: 396.8300825 | BN10: Daggett | BO10: 1.216361117 | BP10: 11.70629468 | BQ10: 0.4054531204 | BR10: 1.773081185 | BS10: 0.01107930257 | BT10: 0.3837369486 | BU10: 396.8300825
A11: Davis | B11: 1.457972588 | C11: 8.860805911 | D11: 0.4458871855 | E11: 1093.479441 | F11: 7.314452363 | G11: 368.0726799 | I11: Davis | J11: 1.581452216 | K11: 11.36066242 | L11: 0.5297937906 | M11: 9.963148958 | N11: 0.07157217327 | O11: 3.337700881 | Q11: Davis | R11: 1.919064844 | S11: 14.3673287 | T11: 0.3949724065 | U11: 1.623578815 | V11: 0.01215513409 | W11: 0.3341569377 | Y11: Davis | Z11: 1.596758033 | AA11: 17.97825028 | AB11: 0.5629441273 | AC11: 55.45240883 | AD11: 0.6243508807 | AE11: 19.5499927 | AG11: Davis | AH11: 1.587834181 | AI11: 23.59142682 | AJ11: 0.5801587797 | AK11: 288.689585 | AL11: 4.28923832 | AM11: 105.4806599 | AO11: Davis | AP11: 0.9991127859 | AQ11: 2.599328309 | AR11: 0.6358724717 | AS11: 0.7483354766 | AT11: 0.001946896903 | AU11: 0.4762684813 | AW11: Davis | AX11: 0.9991127859 | AY11: 2.599328309 | AZ11: 0.6358724717 | BA11: 2.997338358 | BB11: 0.007797984926 | BC11: 1.907617415 | BE11: Davis | BF11: 1.431593742 | BG11: 10.04441195 | BH11: 0.4178065321 | BI11: 0.5217502671 | BJ11: 0.003455494686 | BK11: 0.1437344724 | BL11: 622.7762521 | BN11: Davis | BO11: 1.431593742 | BP11: 10.04441195 | BQ11: 0.4178065321 | BR11: 2.086824294 | BS11: 0.01382072766 | BT11: 0.5748858494 | BU11: 622.7762521
A12: Duchesne | B12: 1.435960619 | C12: 8.836825537 | D12: 0.4119708859 | E12: 1076.970464 | F12: 7.294656952 | G12: 340.0753216 | I12: Duchesne | J12: 1.411458275 | K12: 10.64500783 | L12: 0.4548796065 | M12: 8.892187135 | N12: 0.06706354933 | O12: 2.865741521 | R12: -- | S12: -- | T12: -- | U12: -- | V12: -- | W12: -- | Y12: Duchesne | Z12: 1.381916378 | AA12: 18.49559724 | AB12: 0.3922339494 | AC12: 47.99136145 | AD12: 0.6423173695 | AE12: 13.6215487 | AG12: Duchesne | AH12: 1.388583396 | AI12: 22.32653961 | AJ12: 0.4932837725 | AK12: 252.4631155 | AL12: 4.059264835 | AM12: 89.68561656 | AO12: Duchesne | AP12: 0.9237599385 | AQ12: 2.756911813 | AR12: 0.6233593545 | AS12: 0.6817348346 | AT12: 0.002034600918 | AU12: 0.4600392036 | AW12: Duchesne | AX12: 0.9237599385 | AY12: 2.756911813 | AZ12: 0.6233593545 | BA12: 2.817467812 | BB12: 0.00840858103 | BC12: 1.901246031 | BE12: Duchesne | BF12: 1.378153517 | BG12: 10.79481202 | BH12: 0.4589859738 | BI12: 0.5022737555 | BJ12: 0.003343984512 | BK12: 0.1421832993 | BL12: 519.4985793 | BN12: Duchesne | BO12: 1.378153517 | BP12: 10.79481202 | BQ12: 0.4589859738 | BR12: 2.008924846 | BS12: 0.01337481647 | BT12: 0.5686855088 | BU12: 519.4985793
A13: Emery | B13: 1.213284603 | C13: 7.550571502 | D13: 0.3255205954 | E13: 909.9634522 | F13: 6.232874992 | G13: 268.7120012 | I13: Emery | J13: 1.253588576 | K13: 9.644174432 | L13: 0.3600497596 | M13: 7.89760803 | N13: 0.06075829892 | O13: 2.268313485 | R13: -- | S13: -- | T13: -- | U13: -- | V13: -- | W13: -- | Y13: Emery | Z13: 0.7124034541 | AA13: 12.05032798 | AB13: 0.2870627211 | AC13: 24.74043453 | AD13: 0.4184852682 | AE13: 9.969149387 | AG13: Emery | AH13: 1.169658398 | AI13: 19.14661055 | AJ13: 0.4577647804 | AK13: 212.6596099 | AL13: 3.481111012 | AM13: 83.22778664 | AO13: Emery | AP13: 0.8738446851 | AQ13: 1.555815517 | AR13: 0.5559042888 | AS13: 0.6448973776 | AT13: 0.001148191852 | AU13: 0.4102573652 | AW13: Emery | AX13: 0.8738446851 | AY13: 1.555815517 | AZ13: 0.5559042888 | BA13: 2.665226289 | BB13: 0.004745237327 | BC13: 1.695508081 | BE13: Emery | BF13: 1.278717548 | BG13: 5.075307843 | BH13: 0.2131199468 | BI13: 0.4660339051 | BJ13: 0.003254645549 | BK13: 0.1366675496 | BL13: 1075.416014 | BN13: Emery | BO13: 1.278717548 | BP13: 5.075307843 | BQ13: 0.2131199468 | BR13: 1.863977723 | BS13: 0.01301749058 | BT13: 0.5466243599 | BU13: 1075.416014
A14: Garfield | B14: 1.317110305 | C14: 10.25017646 | D14: 0.2319668238 | E14: 987.8327289 | F14: 8.461355341 | G14: 191.4848717 | I14: Garfield | J14: 1.290944969 | K14: 12.99069854 | L14: 0.2542513661 | M14: 8.132953306 | N14: 0.08184140078 | O14: 1.601783606 | R14: -- | S14: -- | T14: -- | U14: -- | V14: -- | W14: -- | Y14: Garfield | Z14: 0.7507308416 | AA14: 14.04577228 | AB14: 0.2542517452 | AC14: 26.07147275 | AD14: 0.4877833025 | AE14: 8.829685792 | AG14: Garfield | AH14: 1.222830799 | AI14: 21.86282117 | AJ14: 0.4197881203 | AK14: 222.3270667 | AL14: 3.974954592 | AM14: 76.32311966 | AO14: Garfield | AP14: 0.9283073495 | AQ14: 3.212883791 | AR14: 0.5892739942 | AS14: 0.6813775945 | AT14: 0.002358256703 | AU14: 0.4325271117 | AW14: Garfield | AX14: 0.9283073495 | AY14: 3.212883791 | AZ14: 0.5892739942 | BA14: 2.822054343 | BB14: 0.009767166725 | BC14: 1.791392942 | BE14: Garfield | BF14: 1.364074998 | BG14: 12.96610658 | BH14: 0.3296261628 | BI14: 0.497142781 | BJ14: 0.003246258715 | BK14: 0.08252684007 | BL14: 424.1317245 | BN14: Garfield | BO14: 1.364074998 | BP14: 12.96610658 | BQ14: 0.3296261628 | BR14: 1.988402687 | BS14: 0.01298393499 | BT14: 0.3300793993 | BU14: 424.1317245
A15: Grand | B15: 1.363486687 | C15: 9.464621926 | D15: 0.3632463245 | E15: 1022.615015 | F15: 7.812892745 | G15: 299.8539821 | I15: Grand | J15: 1.416753616 | K15: 12.14931456 | L15: 0.4180255036 | M15: 8.925547782 | N15: 0.07654068175 | O15: 2.633560673 | Q15: Grand | R15: 1.758944369 | S15: 12.64962736 | T15: 0.306850292 | U15: 1.488112725 | V15: 0.01070191404 | W15: 0.2596033349 | Y15: Grand | Z15: 1.58056406 | AA15: 19.11268373 | AB15: 0.4587246275 | AC15: 54.89002254 | AD15: 0.6637476248 | AE15: 15.93064513 | AG15: Grand | AH15: 1.551927224 | AI15: 21.79815704 | AJ15: 0.5753142005 | AK15: 282.1612178 | AL15: 3.963197785 | AM15: 104.5998504 | AO15: Grand | AP15: 0.990553148 | AQ15: 3.144755499 | AR15: 0.6309782659 | AS15: 0.7270660107 | AT15: 0.002308250536 | AU15: 0.4631380472 | AW15: Grand | AX15: 0.990553148 | AY15: 3.144755499 | AZ15: 0.6309782659 | BA15: 3.01128157 | BB15: 0.009560056716 | BC15: 1.918173928 | BE15: Grand | BF15: 1.439856419 | BG15: 12.64168414 | BH15: 0.4260036471 | BI15: 0.5247616339 | BJ15: 0.003380714244 | BK15: 0.1139244251 | BL15: 453.0339462 | BN15: Grand | BO15: 1.439856419 | BP15: 12.64168414 | BQ15: 0.4260036471 | BR15: 2.098868741 | BS15: 0.01352171155 | BT15: 0.4556591016 | BU15: 453.0339462
A16: Iron | B16: 1.385275415 | C16: 10.4953237 | D16: 0.3187724223 | E16: 1038.956561 | F16: 8.663720437 | G16: 263.1414931 | I16: Iron | J16: 1.434874465 | K16: 13.55718576 | L16: 0.3657880238 | M16: 9.039709129 | N16: 0.08541027029 | O16: 2.30446455 | Q16: Iron | R16: 1.920527378 | S16: 17.25356199 | T16: 0.3101393339 | U16: 1.624816157 | V16: 0.01459696258 | W16: 0.26238595 | Y16: Iron | Z16: 1.602920278 | AA16: 20.15856654 | AB16: 0.469620311 | AC16: 55.666412 | AD16: 0.7000691713 | AE16: 16.30903176 | AG16: Iron | AH16: 1.589594803 | AI16: 24.64211836 | AJ16: 0.5370155344 | AK16: 289.0096896 | AL16: 4.480268159 | AM16: 97.63663837 | AO16: Iron | AP16: 1.030377776 | AQ16: 3.210883026 | AR16: 0.6289155824 | AS16: 0.7562972876 | AT16: 0.002356788141 | AU16: 0.4616240375 | AW16: Iron | AX16: 1.030377776 | AY16: 3.210883026 | AZ16: 0.6289155824 | BA16: 3.132348439 | BB16: 0.009761084399 | BC16: 1.91190337 | BE16: Iron | BF16: 1.482540362 | BG16: 12.95657498 | BH16: 0.3923784875 | BI16: 0.5403179736 | BJ16: 0.003676288411 | BK16: 0.1113331639 | BL16: 480.6695151 | BN16: Iron | BO16: 1.482540362 | BP16: 12.95657498 | BQ16: 0.3923784875 | BR16: 2.161088829 | BS16: 0.01470390808 | BT16: 0.4452949348 | BU16: 480.6695151
A17: Juab | B17: 1.218824241 | C17: 8.209035554 | D17: 0.3129329795 | E17: 914.1181804 | F17: 6.776426446 | G17: 258.3211272 | I17: Juab | J17: 1.318162439 | K17: 11.0295789 | L17: 0.3712848866 | M17: 8.304423364 | N17: 0.06948634708 | O17: 2.339094786 | R17: -- | S17: -- | T17: -- | U17: -- | V17: -- | W17: -- | Y17: Juab | Z17: 0.7028961708 | AA17: 13.96883314 | AB17: 0.2357854805 | AC17: 24.41026443 | AD17: 0.4851113504 | AE17: 8.188387085 | AG17: Juab | AH17: 1.152208626 | AI17: 22.39990502 | AJ17: 0.375835566 | AK17: 209.4870068 | AL17: 4.072603651 | AM17: 68.33195483 | AO17: Juab | AP17: 0.8817467606 | AQ17: 2.235043798 | AR17: 0.576690841 | AS17: 0.6586648301 | AT17: 0.001669577717 | AU17: 0.4307880582 | AW17: Juab | AX17: 0.8817467606 | AY17: 2.235043798 | AZ17: 0.576690841 | BA17: 2.636422814 | BB17: 0.006682780956 | BC17: 1.724305615 | BE17: Juab | BF17: 1.226343622 | BG17: 8.309726657 | BH17: 0.2779163856 | BI17: 0.4469460108 | BJ17: 0.002855525942 | BK17: 0.09550223266 | BL17: 627.3029701 | BN17: Juab | BO17: 1.226343622 | BP17: 8.309726657 | BQ17: 0.2779163856 | BR17: 1.787632613 | BS17: 0.01142314631 | BT17: 0.3820437982 | BU17: 627.3029701
A18: Kane | B18: 1.257331458 | C18: 10.38889545 | D18: 0.1781959848 | E18: 942.9985934 | F18: 8.575865632 | G18: 147.0979114 | I18: Kane | J18: 1.315103454 | K18: 14.18824709 | L18: 0.2013417018 | M18: 8.285151762 | N18: 0.08938595664 | O18: 1.268452721 | R18: -- | S18: -- | T18: -- | U18: -- | V18: -- | W18: -- | Y18: Kane | Z18: 1.443435423 | AA18: 17.98204913 | AB18: 0.412272513 | AC18: 50.1278024 | AD18: 0.6244828078 | AE18: 14.3174504 | AG18: Kane | AH18: 1.42853116 | AI18: 20.88662903 | AJ18: 0.5319962729 | AK18: 259.7261556 | AL18: 3.797469746 | AM18: 96.7240692 | AO18: Kane | AP18: 0.9235149462 | AQ18: 2.908090939 | AR18: 0.5972946909 | AS18: 0.6778599705 | AT18: 0.002134538749 | AU18: 0.4384143031 | AW18: Kane | AX18: 0.9235149462 | AY18: 2.908090939 | AZ18: 0.5972946909 | BA18: 2.807485436 | BB18: 0.008840596455 | BC18: 1.81577586 | BE18: Kane | BF18: 1.306582601 | BG18: 11.5147119 | BH18: 0.343965671 | BI18: 0.476189439 | BJ18: 0.003150452547 | BK18: 0.09410982519 | BL18: 463.4971659 | BN18: Kane | BO18: 1.306582601 | BP18: 11.5147119 | BQ18: 0.343965671 | BR18: 1.904596418 | BS18: 0.01260074278 | BT18: 0.3764074153 | BU18: 463.4971659
A19: Millard | B19: 1.325799705 | C19: 9.817313544 | D19: 0.302135891 | E19: 994.349779 | F19: 8.104033986 | G19: 249.4083048 | I19: Millard | J19: 1.441460685 | K19: 13.53066217 | L19: 0.3700923048 | M19: 9.081202315 | N19: 0.08524317165 | O19: 2.33158152 | R19: -- | S19: -- | T19: -- | U19: -- | V19: -- | W19: -- | Y19: Millard | Z19: 0.7314409216 | AA19: 12.59844099 | AB19: 0.2948284148 | AC19: 25.40157004 | AD19: 0.4375202039 | AE19: 10.23883735 | AG19: Millard | AH19: 1.200129283 | AI19: 20.25756097 | AJ19: 0.4628109408 | AK19: 218.1996261 | AL19: 3.683096722 | AM19: 84.1452464 | AO19: Millard | AP19: 0.881406177 | AQ19: 1.634720297 | AR19: 0.5670940167 | AS19: 0.6584104142 | AT19: 0.001221136062 | AU19: 0.4236192305 | AW19: Millard | AX19: 0.881406177 | AY19: 1.634720297 | AZ19: 0.5670940167 | BA19: 2.635404469 | BB19: 0.004887813688 | BC19: 1.69561111 | BE19: Millard | BF19: 1.206704652 | BG19: 5.451043033 | BH19: 0.2168229367 | BI19: 0.4397885071 | BJ19: 0.003212618948 | BK19: 0.1277864568 | BL19: 1075.864501 | BN19: Millard | BO19: 1.206704652 | BP19: 5.451043033 | BQ19: 0.2168229367 | BR19: 1.759005023 | BS19: 0.01285164871 | BT19: 0.5111924815 | BU19: 1075.864501
A20: Morgan | B20: 1.333012919 | C20: 8.514082948 | D20: 0.4094553438 | E20: 999.759689 | F20: 7.02823815 | G20: 337.9987822 | I20: Morgan | J20: 1.351595073 | K20: 10.35889316 | L20: 0.4688140177 | M20: 8.515048962 | N20: 0.06526102688 | O20: 2.953528312 | Q20: Morgan | R20: 1.779546779 | S20: 19.31342148 | T20: 0.2021439553 | U20: 1.5055429 | V20: 0.01633965733 | W20: 0.1710190483 | Y20: Morgan | Z20: 1.411110054 | AA20: 19.87811671 | AB20: 0.3448212946 | AC20: 49.00520304 | AD20: 0.6903296751 | AE20: 11.97499621 | AG20: Morgan | AH20: 1.218257691 | AI20: 20.04777919 | AJ20: 0.3886986435 | AK20: 221.4956142 | AL20: 3.644955577 | AM20: 70.67063512 | AO20: Morgan | AP20: 0.8928274607 | AQ20: 2.864164441 | AR20: 0.5777343126 | AS20: 0.6669421132 | AT20: 0.002139530837 | AU20: 0.4315675315 | AW20: Morgan | AX20: 0.8928274607 | AY20: 2.864164441 | AZ20: 0.5777343126 | BA20: 2.740980304 | BB20: 0.008792984833 | BC20: 1.77364434 | BE20: Morgan | BF20: 1.356610289 | BG20: 11.30553981 | BH20: 0.317782441 | BI20: 0.4944222371 | BJ20: 0.003487144708 | BK20: 0.09801861528 | BL20: 505.4828936 | BN20: Morgan | BO20: 1.356610289 | BP20: 11.30553981 | BQ20: 0.317782441 | BR20: 1.977521433 | BS20: 0.01394972178 | BT20: 0.3921065878 | BU20: 505.4828936
A21: Piute | B21: 1.12511719 | C21: 9.867211418 | D21: 0.1156804008 | E21: 843.8378924 | F21: 8.145223877 | G21: 95.49230506 | I21: Piute | J21: 1.093411006 | K21: 12.51047308 | L21: 0.1182889532 | M21: 6.88848934 | N21: 0.07881598039 | O21: 0.7452204053 | R21: -- | S21: -- | T21: -- | U21: -- | V21: -- | W21: -- | Y21: Piute | Z21: 0.6299386152 | AA21: 12.87923755 | AB21: 0.2332084048 | AC21: 21.87658549 | AD21: 0.4472717411 | AE21: 8.098890084 | AG21: Piute | AH21: 1.027383989 | AI21: 20.28325123 | AJ21: 0.3734221359 | AK21: 186.7922109 | AL21: 3.687767557 | AM21: 67.89316083 | AO21: Piute | AP21: 0.8351435127 | AQ21: 3.508295768 | AR21: 0.5471208071 | AS21: 0.623852204 | AT21: 0.002620696939 | AU21: 0.4086992429 | AW21: Piute | AX21: 0.8351435127 | AY21: 3.508295768 | AZ21: 0.5471208071 | BA21: 2.497079103 | BB21: 0.01048980435 | BC21: 1.635891213 | BE21: Piute | BF21: 1.257053394 | BG21: 14.37283356 | BH21: 0.2225709861 | BI21: 0.4581383144 | BJ21: 0.002627212195 | BK21: 0.0406837807 | BL21: 333.6804226 | BN21: Piute | BO21: 1.257053394 | BP21: 14.37283356 | BQ21: 0.2225709861 | BR21: 1.832398035 | BS21: 0.01050980797 | BT21: 0.1627499763 | BU21: 333.6804226
A22: Rich | B22: 1.295208626 | C22: 9.441210271 | D22: 0.2980114048 | E22: 971.4064691 | F22: 7.793566801 | G22: 246.003608 | I22: Rich | J22: 1.365669786 | K22: 12.89241339 | L22: 0.3527831727 | M22: 8.603719653 | N22: 0.08122220435 | O22: 2.222533988 | Q22: Salt Lake | R22: 2.207471758 | S22: 12.91644229 | T22: 0.5575794707 | U22: 1.867578572 | V22: 0.01092764642 | W22: 0.471726747 | Y22: Rich | Z22: 0.7446683311 | AA22: 13.58891779 | AB22: 0.2626040685 | AC22: 25.86093314 | AD22: 0.4719176037 | AE22: 9.119746298 | AG22: Rich | AH22: 1.196401754 | AI22: 21.87039656 | AJ22: 0.4102098376 | AK22: 217.5219112 | AL22: 3.976331899 | AM22: 74.5816592 | AO22: Rich | AP22: 0.9143395593 | AQ22: 2.986986797 | AR22: 0.5808500396 | AS22: 0.6839259904 | AT22: 0.002234266124 | AU22: 0.4344758296 | AW22: Rich | AX22: 0.9143395593 | AY22: 2.986986797 | AZ22: 0.5808500396 | BA22: 2.733875282 | BB22: 0.008931090522 | BC22: 1.736741618 | BE22: Rich | BF22: 1.405160283 | BG22: 11.89040732 | BH22: 0.3237692362 | BI22: 0.5121164832 | BJ22: 0.003132526778 | BK22: 0.08529697723 | BL22: 478.4778666 | BN22: Rich | BO22: 1.405160283 | BP22: 11.89040732 | BQ22: 0.3237692362 | BR22: 2.048292422 | BS22: 0.01253124497 | BT22: 0.3412188922 | BU22: 478.4778666
A23: Salt lake | B23: 1.783553748 | C23: 10.13771148 | D23: 0.5740709131 | E23: 1337.665311 | F23: 8.368517312 | G23: 473.8862795 | I23: Salt lake | J23: 1.854651661 | K23: 12.4444908 | L23: 0.6439819706 | M23: 11.68430547 | N23: 0.07840029201 | O23: 4.057086415 | R23: -- | S23: -- | T23: -- | U23: -- | V23: -- | W23: -- | Y23: Salt lake | Z23: 2.056396751 | AA23: 19.08582038 | AB23: 0.7493880037 | AC23: 71.41479858 | AD23: 0.6628147111 | AE23: 26.0248385 | AG23: Salt lake | AH23: 1.954972648 | AI23: 22.39985336 | AJ23: 0.7926620837 | AK23: 355.4402904 | AL23: 4.072594258 | AM23: 144.1166154 | AO23: Salt lake | AP23: 1.204730365 | AQ23: 2.822250222 | AR23: 0.7266750831 | AS23: 0.9047525039 | AT23: 0.002119509917 | AU23: 0.5457329874 | AW23: Salt lake | AX23: 1.204730365 | AY23: 2.822250222 | AZ23: 0.7266750831 | BA23: 3.626238398 | BB23: 0.008494973168 | BC23: 2.187292 | BE23: Salt lake | BF23: 1.793987927 | BG23: 11.10594215 | BH23: 0.6012227768 | BI23: 0.6538263282 | BJ23: 0.004193164175 | BK23: 0.2269979237 | BL23: 674.5764145 | BN23: Salt lake | BO23: 1.793987927 | BP23: 11.10594215 | BQ23: 0.6012227768 | BR23: 2.61508379 | BS23: 0.01677415506 | BT23: 0.9080728088 | BU23: 674.5764145
A24: San Juan | B24: 1.255475631 | C24: 8.441370897 | D24: 0.3029865784 | E24: 941.6067234 | F24: 6.968215525 | G24: 250.1105336 | I24: San Juan | J24: 1.267496968 | K24: 10.55612588 | L24: 0.3375123136 | M24: 7.9852309 | N24: 0.06650359305 | O24: 2.126327576 | R24: -- | S24: -- | T24: -- | U24: -- | V24: -- | W24: -- | Y24: San Juan | Z24: 1.332112773 | AA24: 18.13113141 | AB24: 0.3609880589 | AC24: 46.26177576 | AD24: 0.6296601556 | AE24: 12.53643759 | AG24: San Juan | AH24: 1.308105814 | AI24: 22.77749375 | AJ24: 0.4325240993 | AK24: 237.8312099 | AL24: 4.141254355 | AM24: 78.63869173 | AO24: San Juan | AP24: 0.8800723428 | AQ24: 2.740143109 | AR24: 0.5891086033 | AS24: 0.6609343294 | AT24: 0.002057847475 | AU24: 0.4424205611 | AW24: San Juan | AX24: 0.8800723428 | AY24: 2.740143109 | AZ24: 0.5891086033 | BA24: 2.649017752 | BB24: 0.008247830758 | BC24: 1.773216896 | BE24: San Juan | BF24: 1.260327347 | BG24: 10.71496147 | BH24: 0.3362428731 | BI24: 0.45933152 | BJ24: 0.002999643015 | BK24: 0.09413086443 | BL24: 500.1769249 | BN24: San Juan | BO24: 1.260327347 | BP24: 10.71496147 | BQ24: 0.3362428731 | BR24: 1.837170454 | BS24: 0.01199964394 | BT24: 0.3765570939 | BU24: 500.1769249
A25: Sanpete | B25: 1.342520594 | C25: 10.13600508 | D25: 0.2931624799 | E25: 1006.890446 | F25: 8.367108711 | G25: 242.0008987 | I25: Sanpete | J25: 1.41638363 | K25: 13.74193079 | L25: 0.3385248417 | M25: 8.923216871 | N25: 0.086574164 | O25: 2.132706503 | R25: -- | S25: -- | T25: -- | U25: -- | V25: -- | W25: -- | Y25: Sanpete | Z25: 0.7528783844 | AA25: 13.09868387 | AB25: 0.2957377128 | AC25: 26.14605287 | AD25: 0.4548926999 | AE25: 10.27041556 | AG25: Sanpete | AH25: 1.231218126 | AI25: 21.0465616 | AJ25: 0.4650098208 | AK25: 223.8519953 | AL25: 3.826547637 | AM25: 84.54503232 | AO25: Sanpete | AP25: 0.9459229948 | AQ25: 3.080834899 | AR25: 0.6036228589 | AS25: 0.7066044771 | AT25: 0.00230138367 | AU25: 0.4509062756 | AW25: Sanpete | AX25: 0.9459229948 | AY25: 3.080834899 | AZ25: 0.6036228589 | BA25: 2.828309754 | BB25: 0.009211696348 | BC25: 1.804832348 | BE25: Sanpete | BF25: 1.397670451 | BG25: 12.33730133 | BH25: 0.3680998041 | BI25: 0.5093867832 | BJ25: 0.003169096509 | BK25: 0.09455421189 | BL25: 468.9140708 | BN25: Sanpete | BO25: 1.397670451 | BP25: 12.33730133 | BQ25: 0.3680998041 | BR25: 2.037374547 | BS25: 0.01267754306 | BT25: 0.378251369 | BU25: 468.9140708
A26: Sevier | B26: 1.496103806 | C26: 10.68013225 | D26: 0.3291157555 | E26: 1122.077854 | F26: 8.816276911 | G26: 271.6797479 | I26: Sevier | J26: 1.549120533 | K26: 13.99835402 | L26: 0.3907443426 | M26: 9.759459355 | N26: 0.08818963034 | O26: 2.461689359 | R26: -- | S26: -- | T26: -- | U26: -- | V26: -- | W26: -- | Y26: Sevier | Z26: 0.770719191 | AA26: 12.78085476 | AB26: 0.3205679438 | AC26: 26.7656306 | AD26: 0.4438550915 | AE26: 11.13272287 | AG26: Sevier | AH26: 1.258142958 | AI26: 20.70831928 | AJ26: 0.5002614901 | AK26: 228.7472916 | AL26: 3.765050638 | AM26: 90.95425936 | AO26: Sevier | AP26: 0.9624804957 | AQ26: 2.63243003 | AR26: 0.6103825303 | AS26: 0.7189729303 | AT26: 0.001966425233 | AU26: 0.4559557501 | AW26: Sevier | AX26: 0.9624804957 | AY26: 2.63243003 | AZ26: 0.6103825303 | BA26: 2.877816682 | BB26: 0.007870965791 | BC26: 1.825043766 | BE26: Sevier | BF26: 1.365997123 | BG26: 10.20203848 | BH26: 0.3436358584 | BI26: 0.4978433074 | BJ26: 0.003192757284 | BK26: 0.1075418303 | BL26: 571.290391 | BN26: Sevier | BO26: 1.365997123 | BP26: 10.20203848 | BQ26: 0.3436358584 | BR26: 1.991204555 | BS26: 0.0127721948 | BT26: 0.4302065842 | BU26: 571.290391
A27: Summit | B27: 1.406774584 | C27: 8.34703895 | D27: 0.4576438307 | E27: 1055.080938 | F27: 6.890346023 | G27: 377.7776009 | I27: Summit | J27: 1.426626425 | K27: 10.41685509 | L27: 0.5204951122 | M27: 8.987746479 | N27: 0.06562618708 | O27: 3.279119207 | Q27: Summit | R27: 1.786677656 | S27: 10.43798292 | T27: 0.3892733275 | U27: 1.511575807 | V27: 0.008830805268 | W27: 0.3293353685 | Y27: Summit | Z27: 1.618206209 | AA27: 15.89668069 | AB27: 0.6052940902 | AC27: 56.19726369 | AD27: 0.5520618767 | AE27: 21.0207274 | AG27: Summit | AH27: 1.533089646 | AI27: 18.45257135 | AJ27: 0.6684138012 | AK27: 278.736293 | AL27: 3.354925362 | AM27: 121.5266085 | AO27: Summit | AP27: 0.9819642686 | AQ27: 2.702193807 | AR27: 0.6417014043 | AS27: 0.7207617732 | AT27: 0.001983410255 | AU27: 0.4710088308 | AW27: Summit | AX27: 0.9819642686 | AY27: 2.702193807 | AZ27: 0.6417014043 | BA27: 2.985171377 | BB27: 0.008214669175 | BC27: 1.950772269 | BE27: Summit | BF27: 1.460249851 | BG27: 10.53424951 | BH27: 0.4583804966 | BI27: 0.5321941044 | BJ27: 0.003419160465 | BK27: 0.1487791295 | BL27: 549.5692691 | BN27: Summit | BO27: 1.460249851 | BP27: 10.53424951 | BQ27: 0.4583804966 | BR27: 2.128596104 | BS27: 0.01367432614 | BT27: 0.5950157531 | BU27: 549.5692691
A28: Tooele | B28: 1.272347389 | C28: 8.307167099 | D28: 0.3334645101 | E28: 954.2605419 | F28: 6.857432453 | G28: 275.2695746 | I28: Tooele | J28: 1.38156096 | K28: 11.29771518 | L28: 0.4016587133 | M28: 8.703834049 | N28: 0.07117560565 | O28: 2.530449894 | R28: -- | S28: -- | T28: -- | U28: -- | V28: -- | W28: -- | Y28: Tooele | Z28: 1.381244424 | AA28: 15.88902596 | AB28: 0.5090975282 | AC28: 47.96802577 | AD28: 0.5517960424 | AE28: 17.6800014 | AG28: Tooele | AH28: 1.220530352 | AI28: 17.63170038 | AJ28: 0.4709309192 | AK28: 221.9088144 | AL28: 3.205679992 | AM28: 85.62156755 | AO28: Tooele | AP28: 0.8841182909 | AQ28: 2.04709189 | AR28: 0.5799401017 | AS28: 0.6604363633 | AT28: 0.001529177642 | AU28: 0.4332152559 | AW28: Tooele | AX28: 0.8841182909 | AY28: 2.04709189 | AZ28: 0.5799401017 | BA28: 2.714243153 | BB28: 0.006284572101 | BC28: 1.780416112 | BE28: Tooele | BF28: 1.235895195 | BG28: 7.41471757 | BH28: 0.2779319127 | BI28: 0.450427121 | BJ28: 0.00341698331 | BK28: 0.1280815753 | BL28: 755.5959318 | BN28: Tooele | BO28: 1.235895195 | BP28: 7.41471757 | BQ28: 0.2779319127 | BR28: 1.801555875 | BS28: 0.01367017425 | BT28: 0.512410303 | BU28: 755.5959318
A29: Uintah | B29: 1.452500683 | C29: 8.965339857 | D29: 0.4147538412 | E29: 1089.375512 | F29: 7.40074345 | G29: 342.3726064 | I29: Uintah | J29: 1.453814796 | K29: 11.08258721 | L29: 0.456163595 | M29: 9.159033215 | N29: 0.06982029944 | O29: 2.873830648 | Q29: Uintah | R29: 1.67190403 | S29: 12.1868347 | T29: 0.3000337255 | U29: 1.414474332 | V29: 0.0103103794 | W29: 0.2538363422 | Y29: Uintah | Z29: 1.45248837 | AA29: 17.52063312 | AB29: 0.4659342267 | AC29: 50.44219427 | AD29: 0.6084586959 | AE29: 16.18102097 | AG29: Uintah | AH29: 1.48025863 | AI29: 22.16206339 | AJ29: 0.5383181597 | AK29: 269.1309046 | AL29: 4.029360848 | AM29: 97.87347314 | AO29: Uintah | AP29: 0.9752596388 | AQ29: 2.604126176 | AR29: 0.6302895485 | AS29: 0.7197416134 | AT29: 0.001921845118 | AU29: 0.4651536868 | AW29: Uintah | AX29: 0.9752596388 | AY29: 2.604126176 | AZ29: 0.6302895485 | BA29: 2.974541898 | BB29: 0.007942584837 | BC29: 1.922383123 | BE29: Uintah | BF29: 1.431703042 | BG29: 10.06726036 | BH29: 0.4412440405 | BI29: 0.5217901018 | BJ29: 0.003580725507 | BK29: 0.156941783 | BL29: 596.4786728 | BN29: Uintah | BO29: 1.431703042 | BP29: 10.06726036 | BQ29: 0.4412440405 | BR29: 2.086983619 | BS29: 0.01432170105 | BT29: 0.6277144933 | BU29: 596.4786728
A30: Utah | B30: 1.489938771 | C30: 9.586000388 | D30: 0.4495324661 | E30: 1117.454078 | F30: 7.913088708 | G30: 371.0818003 | I30: Utah | J30: 1.551472333 | K30: 12.12120979 | L30: 0.5099534429 | M30: 9.774275697 | N30: 0.07636362166 | O30: 3.21270669 | Q30: Utah | R30: 2.065845293 | S30: 14.98466332 | T30: 0.425171236 | U30: 1.747758896 | V30: 0.01267741525 | W30: 0.3597059337 | Y30: Utah | Z30: 1.836666356 | AA30: 19.34587039 | AB30: 0.6182772874 | AC30: 63.78397448 | AD30: 0.6718457596 | AE30: 21.47160947 | AG30: Utah | AH30: 1.738401729 | AI30: 21.84391777 | AJ30: 0.6859958754 | AK30: 316.0647878 | AL30: 3.9715177 | AM30: 124.7232657 | AO30: Utah | AP30: 1.101598257 | AQ30: 2.953197862 | AR30: 0.6754145301 | AS30: 0.8295034874 | AT30: 0.00222375799 | AU30: 0.5085871412 | AW30: Utah | AX30: 1.101598257 | AY30: 2.953197862 | AZ30: 0.6754145301 | BA30: 3.392922631 | BB30: 0.009095849413 | BC30: 2.080276753 | BE30: Utah | BF30: 1.624911223 | BG30: 11.7295032 | BH30: 0.495319191 | BI30: 0.5922056234 | BJ30: 0.004244887808 | BK30: 0.1792551961 | BL30: 583.8953633 | BN30: Utah | BO30: 1.624911223 | BP30: 11.7295032 | BQ30: 0.495319191 | BR30: 2.368621848 | BS30: 0.01697818147 | BT30: 0.7169629413 | BU30: 583.8953633
A31: Wasatch | B31: 1.307795937 | C31: 8.358009671 | D31: 0.3703098277 | E31: 980.8469525 | F31: 6.899402177 | G31: 305.68479 | I31: Wasatch | J31: 1.362011814 | K31: 10.651452 | L31: 0.4164223101 | M31: 8.580674429 | N31: 0.06710414757 | O31: 2.623460553 | Q31: Wasatch | R31: 1.872595221 | S31: 14.30322751 | T31: 0.320369555 | U31: 1.584264304 | V31: 0.01210090282 | W31: 0.2710409833 | Y31: Wasatch | Z31: 1.608675145 | AA31: 20.05239777 | AB31: 0.4373929821 | AC31: 55.86626775 | AD31: 0.6963821292 | AE31: 15.18983713 | AG31: Wasatch | AH31: 1.546884982 | AI31: 22.7315833 | AJ31: 0.5365684312 | AK31: 281.2444705 | AL31: 4.132907218 | AM31: 97.55534901 | AO31: Wasatch | AP31: 0.9660812837 | AQ31: 3.070284868 | AR31: 0.6097875936 | AS31: 0.7226288002 | AT31: 0.002296573081 | AU31: 0.45612112 | AW31: Wasatch | AX31: 0.9660812837 | AY31: 3.070284868 | AZ31: 0.6097875936 | BA31: 2.965869541 | BB31: 0.009425774545 | BC31: 1.872047912 | BE31: Wasatch | BF31: 1.42915516 | BG31: 12.28706351 | BH31: 0.3693499695 | BI31: 0.5208615158 | BJ31: 0.00352262942 | BK31: 0.1058904812 | BL31: 469.22122 | BN31: Wasatch | BO31: 1.42915516 | BP31: 12.28706351 | BQ31: 0.3693499695 | BR31: 2.08326959 | BS31: 0.01409051768 | BT31: 0.4235619249 | BU31: 469.22122
A32: Washington | B32: 1.620156518 | C32: 11.3579252 | D32: 0.4109902151 | E32: 1215.117388 | F32: 9.375784064 | G32: 339.2657937 | I32: Washington | J32: 1.58934063 | K32: 13.81316792 | L32: 0.4539502174 | M32: 10.01284597 | N32: 0.08702295788 | O32: 2.85988637 | Q32: Washington | R32: 2.11233942 | S32: 16.96683551 | T32: 0.4001089135 | U32: 1.787094137 | V32: 0.01435438452 | W32: 0.3385025563 | Y32: Washington | Z32: 1.808442612 | AA32: 21.31340026 | AB32: 0.5349962454 | AC32: 62.80381683 | AD32: 0.7401743782 | AE32: 18.57941523 | AG32: Washington | AH32: 1.761604396 | AI32: 24.85647523 | AJ32: 0.615754907 | AK32: 320.2833444 | AL32: 4.519241117 | AM32: 111.9525141 | AO32: Washington | AP32: 1.117690614 | AQ32: 3.550955982 | AR32: 0.661458785 | AS32: 0.820384911 | AT32: 0.002606401691 | AU32: 0.4855107482 | AW32: Washington | AX32: 1.117690614 | AY32: 3.550955982 | AZ32: 0.661458785 | BA32: 3.397779468 | BB32: 0.01079490618 | BC32: 2.010834706 | BE32: Washington | BF32: 1.655224354 | BG32: 14.57596858 | BH32: 0.4506146903 | BI32: 0.6032533696 | BJ32: 0.003992757175 | BK32: 0.1234357105 | BL32: 464.0477722 | BN32: Washington | BO32: 1.655224354 | BP32: 14.57596858 | BQ32: 0.4506146903 | BR32: 2.41280909 | BS32: 0.01596967591 | BT32: 0.4937010206 | BU32: 464.0477722
A33: Wayne | B33: 1.192135895 | C33: 8.723029024 | D33: 0.2583121098 | E33: 894.101921 | F33: 7.200719766 | G33: 213.2324803 | I33: Wayne | J33: 1.287791044 | K33: 12.16878957 | L33: 0.2876226812 | M33: 8.113083576 | N33: 0.0766633743 | O33: 1.812022892 | R33: -- | S33: -- | T33: -- | U33: -- | V33: -- | W33: -- | Y33: Wayne | Z33: 0.6587924293 | AA33: 13.28796598 | AB33: 0.2355820111 | AC33: 22.87862428 | AD33: 0.4614661123 | AE33: 8.181320975 | AG33: Wayne | AH33: 1.086052991 | AI33: 20.80818778 | AJ33: 0.3882447622 | AK33: 197.4590237 | AL33: 3.783208074 | AM33: 70.58811341 | AO33: Wayne | AP33: 0.8615857916 | AQ33: 3.102446051 | AR33: 0.5653922349 | AS33: 0.6436045863 | AT33: 0.0023175272 | AU33: 0.4223479995 | AW33: Wayne | AX33: 0.8615857916 | AY33: 3.102446051 | AZ33: 0.5653922349 | BA33: 2.576141517 | BB33: 0.009276313694 | BC33: 1.690522782 | BE33: Wayne | BF33: 1.259717579 | BG33: 12.44021344 | BH33: 0.2740649283 | BI33: 0.4591092877 | BJ33: 0.002769893942 | BK33: 0.061022328 | BL33: 406.4557587 | BN33: Wayne | BO33: 1.259717579 | BP33: 12.44021344 | BQ33: 0.2740649283 | BR33: 1.836281599 | BS33: 0.01108058705 | BT33: 0.244111591 | BU33: 406.4557587
A34: Weber | B34: 1.406297031 | C34: 9.269735602 | D34: 0.414104183 | E34: 1054.722773 | F34: 7.652017227 | G34: 341.836324 | I34: Weber | J34: 1.50825207 | K34: 12.10591305 | L34: 0.4923596363 | M34: 9.501988039 | N34: 0.0762672522 | O34: 3.101865709 | Q34: Weber | R34: 1.841714127 | S34: 14.40257453 | T34: 0.369428507 | U34: 1.558138095 | V34: 0.01218495298 | W34: 0.3125461338 | Y34: Weber | Z34: 1.59605115 | AA34: 18.75663483 | AB34: 0.5470696431 | AC34: 55.42786009 | AD34: 0.6513827147 | AE34: 18.99870166 | AG34: Weber | AH34: 1.585132091 | AI34: 23.07807558 | AJ34: 0.6034634824 | AK34: 288.1983086 | AL34: 4.195904168 | AM34: 109.717768 | AO34: Weber | AP34: 1.029249848 | AQ34: 2.578025411 | AR34: 0.6507038941 | AS34: 0.7688496363 | AT34: 0.001925784982 | AU34: 0.4860758089 | AW34: Weber | AX34: 1.029249848 | AY34: 2.578025411 | AZ34: 0.6507038941 | BA34: 3.159797033 | BB34: 0.007914538012 | BC34: 1.997660955 | BE34: Weber | BF34: 1.437099275 | BG34: 9.942968291 | BH34: 0.4169937814 | BI34: 0.5237567814 | BJ34: 0.003862263244 | BK34: 0.1619777624 | BL34: 636.580914 | BN34: Weber | BO34: 1.437099275 | BP34: 9.942968291 | BQ34: 0.4169937814 | BR34: 2.094849671 | BS34: 0.01545031888 | BT34: 0.6479641395 | BU34: 636.580914
